Cogmind - Beta 10.2 @@@ ROGUE MODE // 2021.01.13 @ 13:58:39 Player: blelm Result: Escaped singularity! Performance ------------- Evolutions (9) 4500 Regions Visited (33) 6600 Robots Destroyed (570) 2850 Value Destroyed (35356) 35356 Prototype IDs (104) 2080 Alien Tech Used (15) 3000 Bonus (50879) 50879 TOTAL SCORE: 105265 Bonus ------- High Alert Combat Kills 4247 Follower Combat Kills 466 Entered Garrisons 1000 Used RIF Installer 2500 Met Data Miner 300 Used Core Reset Matrix 3000 Recovered Sigix Corpse 1000 Destroyed MAIN.C Guards 500 Met MAIN.C 5000 Destroyed MAIN.C Shell 5000 Destroyed MAIN.C 10000 Met Architect 300 Started Test 138-B 500 Destroyed A8 300 Destroyed A6 400 Destroyed A5 500 Destroyed A4 700 Destroyed A3 800 Destroyed A2 1000 Destroyed Architect 15000 Win 3000 Friendly Fire -4634 Cogmind --------- Core Integrity 774/1600 Matter 244/300 Energy 99/100 System Corruption 0% Temperature Cool (0) Movement Core (50) Location Near Former Tau Ceti IV Parts ------- > --- POWER (2) -------- (None) > --- PROPULSION (4) --- (None) > --- UTILITY (15) ----- (None) > --- WEAPON (4) ------- (None) > --- INVENTORY (4) ---- Enhanced Armored Heavy Treads Sigix Corpse Peak State ------------ > --- POWER ------------ Improved Quantum Reactor Zero-point Reactor > --- PROPULSION ------- Enhanced Armored Heavy Treads Advanced Heavy Siege Treads > --- UTILITY ---------- Desublimator High-capacity Storage Unit High-capacity Storage Unit High-capacity Storage Unit Spectral Analyzer Experimental Terrain Scan Processor Advanced Armor Integrity Analyzer Advanced Kinecellerator Experimental Weapon Cycler Heavy Regenerative Plating SHELL Armor AEGIS Remote Shield > --- WEAPON ----------- Helical Railgun Multirail Omega Cannon > --- INVENTORY -------- Improved Quantum Reactor Improved Quantum Reactor Enhanced Armored Heavy Treads Enhanced Armored Heavy Treads Desublimator 2N-1CE's Frost Array Experimental Energy Well Experimental Energy Well Experimental Matter Compressor Experimental Terrain Scanner Advanced Kinecellerator Experimental Weapon Cycler Experimental Powered Armor Experimental Powered Armor Experimental Force Field Long-range Tractor Beam Transdimensional Reconstructor Sigix Quantum Sheargun Sigix Quantum Sheargun Sigix Quantum Sheargun Hypervelocity Linear Accelerator Hypervelocity Linear Accelerator Hypervelocity Linear Accelerator Point Singularity Launcher [Rating: 244] Favorites ----------- Power Antimatter Reactor Engine Improved Ion Engine Power Core Fission Core Reactor Antimatter Reactor Propulsion Heavy Treads Treads Heavy Treads Leg Aluminum Leg Flight Unit Improved Flight Unit Utility High-capacity Storage Unit Device Long-range Sensor Array Storage High-capacity Storage Unit Processor Advanced Signal Interpreter Hackware System Mapper Protection SHELL Armor Weapon Helical Railgun Energy Gun Force Rifle Energy Cannon Compact HERF Cannon Ballistic Gun Helical Railgun Ballistic Cannon Omega Cannon Launcher Heavy Shock Bomb Launcher Special Weapon Improved Remote Datajack Slashing Weapon Axe Piercing Weapon Plasma Lance Special Melee Weapon Datajack Build | -11 -10 -10 -9 -9 -9 -8 -8 -8 -7 -7 -6 -6 -6 -6 -6 -6 -5 -5 -5 -5 -5 -4 -4 -4 -4 -3 -3 -2 -2 -2 -1 -1 -1 ------- Run | Scr Mat Min Mat Min Exi Min Mat Gar Fac Gar Fac Was Fac Low Low Dat Pro Fac Gar Fac Gar Fac Was Fac Gar Res Tes Res Qua Sec Acc Com Ac0 Slots Evolved 18 | . . . 2 . . . 2 . 2 . 2 . . . . . . 2 . . . 2 . . . 2 . 2 . . 2 . . Power 1 | . . . . . . . . . . . . . . . . . . . . . . 1 . . . . . . . . . . . Propulsion 2 | . . . . . . . 1 . . . 1 . . . . . . . . . . . . . . . . . . . . . . Utility 13 | . . . 2 . . . 1 . 2 . 1 . . . . . . 2 . . . 1 . . . 2 . 2 . . . . . Weapon 2 | . . . . . . . . . . . . . . . . . . . . . . . . . . . . . . . 2 . . Parts Attached 1436 | 5 4 3 27 14 2 2 18 18 23 23 42 29 6 20 7 . 7 33 26 72 52 57 35 64 28 41 90 22 79 184 37 152 214 Power 55 | . . . 2 . . 1 1 1 . 1 2 4 . . . . . . . 1 3 4 3 . . . 1 1 2 8 2 5 13 Engine 8 | . . . 2 . . . 1 1 . 1 2 . . . . . . . . . . 1 . . . . . . . . . . . Core 4 | . . . . . . 1 . . . . . . . . . . . . . . 2 1 . . . . . . . . . . . Reactor 43 | . . . . . . . . . . . . 4 . . . . . . . 1 1 2 3 . . . 1 1 2 8 2 5 13 Propulsion 74 | 4 2 . 4 4 . . 3 4 . 4 6 9 . . . . . . . . 4 . 3 . 2 1 . . 2 4 2 11 5 Treads 71 | 2 2 . 3 4 . . 3 4 . 4 6 9 . . . . . . . . 4 . 3 . 2 1 . . 2 4 2 11 5 Leg 2 | 2 . . . . . . . . . . . . . . . . . . . . . . . . . . . . . . . . . Wheel . | . . . . . . . . . . . . . . . . . . . . . . . . . . . . . . . . . . Hover . | . . . . . . . . . . . . . . . . . . . . . . . . . . . . . . . . . . Flight 1 | . . . 1 . . . . . . . . . . . . . . . . . . . . . . . . . . . . . . Utility 825 | 1 2 . 5 3 2 . 7 . 12 4 14 9 2 4 6 . 2 21 12 44 27 30 12 35 17 28 64 20 56 135 28 95 128 Device 573 | . . . . . . . 3 . 6 1 7 6 2 4 3 . 2 13 6 14 13 20 8 33 15 18 45 17 40 107 26 55 109 Storage 25 | 1 2 . . . 2 . 1 . 1 . . . . . 2 . . 2 1 . 1 1 . . . . 1 . 1 . 1 5 3 Processor 21 | . . . . . . . . . 1 . 1 . . . 1 . . . . 2 . 1 . . . . . . . . . 13 2 Hackware 22 | . . . . . . . . . 2 . 2 . . . . . . . . 3 . 2 1 1 1 2 1 1 . 1 . . 5 Protection 184 | . . . 5 3 . . 3 . 2 3 4 3 . . . . . 6 5 25 13 6 3 1 1 8 17 2 15 27 1 22 9 Artifact . | . . . . . . . . . . . . . . . . . . . . . . . . . . . . . . . . . . Weapon 482 | . . 3 16 7 . 1 7 13 11 14 20 7 4 16 1 . 5 12 14 27 18 23 17 29 9 12 25 1 19 37 5 41 68 Energy Gun 69 | . . . . . . . 2 5 . 9 1 4 1 6 . . 1 1 3 3 9 5 1 3 2 . 1 . . 2 . 8 2 Energy Cannon 147 | . . . 2 3 . . 3 2 2 . . . 1 3 1 . 1 5 6 12 1 7 2 15 2 5 13 1 16 30 2 12 . Ballistic Gun 136 | . . 1 8 3 . . . 2 2 . 8 1 . 3 . . . 5 2 8 2 2 8 7 1 5 6 . . 1 1 13 47 Ballistic Cannon 28 | . . . . . . . . . . . . . . . . . . . . . . 4 1 2 . . . . . . . 5 16 Launcher 62 | . . 2 4 1 . 1 1 4 . 5 3 . 1 4 . . 2 1 3 1 6 2 4 2 4 1 2 . 2 . 2 1 3 Special Weapon 26 | . . . 2 . . . 1 . 1 . 3 2 . . . . . . . 3 . 3 1 . . 1 3 . 1 4 . 1 . Impact Weapon . | . . . . . . . . . . . . . . . . . . . . . . . . . . . . . . . . . . Slashing Weapon 11 | . . . . . . . . . 5 . 5 . 1 . . . . . . . . . . . . . . . . . . . . Piercing Weapon 1 | . . . . . . . . . . . . . . . . . . . . . . . . . . . . . . . . 1 . Special Melee Weapon 2 | . . . . . . . . . 1 . . . . . . . 1 . . . . . . . . . . . . . . . . Unidentified Prototypes 97 | . . . 2 . . . . . . . 3 . 1 . . . . 1 . . . . 2 . . . 7 1 3 10 . 25 42 Parts Lost 56 | . . . 2 4 . . 3 . . 2 . 1 . . . . . . . 1 11 2 . . 1 . . . 1 1 3 4 20 Power 7 | . . . . . . . 1 . . . . . . . . . . . . 1 1 1 . . . . . . . . 2 . 1 Propulsion 8 | . . . 1 1 . . . . . . . . . . . . . . . . 2 . . . . . . . 1 . . . 3 Utility 21 | . . . 1 1 . . 1 . . . . . . . . . . . . . 5 . . . . . . . . . 1 3 9 Weapon 20 | . . . . 2 . . 1 . . 2 . 1 . . . . . . . . 3 1 . . 1 . . . . 1 . 1 7 Highest Loss Streak 10 | . . . 1 4 . . 2 . . 2 . 1 . . . . . . . 1 2 1 . . 1 . . . 1 1 1 2 10 Average Slot Usage (%) 82 | . 100 100 99 99 100 100 95 100 100 93 93 74 73 72 73 73 73 79 88 87 87 87 77 77 78 83 85 81 79 81 77 73 78 Engine 1 | . 14 14 10 11 11 4 4 9 7 7 6 . . . . . . . . . . 5 3 . . . . . . . . . . Reactor 5 | . . . . . . . . . . . . 5 6 6 6 6 6 5 5 4 4 2 6 10 10 9 9 8 8 7 7 5 7 Treads 12 | . 12 28 21 21 22 22 27 27 23 23 25 14 13 13 13 13 13 11 11 11 10 10 10 10 9 9 9 8 8 7 8 7 7 Device 11 | . . . . . . . 8 9 14 7 12 5 6 6 5 6 6 12 16 15 11 19 6 9 10 17 18 17 17 17 13 11 15 Storage 19 | . 28 28 22 22 22 22 20 27 23 23 20 20 20 20 20 20 20 22 23 23 23 21 21 21 21 19 19 17 17 17 16 15 12 Processor 7 | . . . . . . . . . 7 7 6 6 6 6 6 6 6 5 5 5 5 10 10 10 10 9 9 8 8 8 8 9 11 Hackware 1 | . . . . . . . . . 2 1 1 . . . . . . . . 3 . . 3 . . 3 4 7 4 7 8 . . Protection 8 | . . . 21 22 22 22 12 9 4 7 6 5 6 6 6 6 6 6 11 7 15 5 5 5 5 4 4 4 3 3 4 7 8 Energy Gun 2 | . . . . . . . 3 12 2 11 2 10 8 8 7 6 7 . 2 1 7 4 . . 5 . . . . . . . . Energy Cannon 3 | . . . 1 10 11 5 6 . . . . . 2 1 4 6 4 4 1 3 . 3 . 3 . 2 3 5 7 7 9 5 . Ballistic Gun 4 | . 28 16 18 11 11 11 7 1 5 1 3 2 . . . . . 4 5 3 . . 6 4 . 4 3 2 . . . 6 14 Naked Turns 7 | . . . . . . . . . . . . . . . . . . . . . . . . . . . . . . . . . 7 Heaviest Build 270 | 14 38 40 55 58 85 85 129 120 126 138 146 169 172 172 173 173 173 207 188 205 185 205 222 236 228 226 240 234 255 252 254 270 250 Greatest Support 180 | 40 46 46 46 43 40 40 63 63 60 60 112 140 140 140 140 140 140 140 140 140 140 140 145 140 140 140 140 140 145 180 180 180 180 Greatest Overweight (x) 61 | . 1 . 2 1 2 2 2 1 2 2 1 55 1 1 1 1 1 1 1 1 61 1 2 1 1 1 1 1 1 1 1 2 2 Average Overweight (x) 1 | . . . 1 1 1 2 1 1 1 2 1 16 1 1 1 1 1 1 1 1 4 1 1 1 1 1 1 1 1 1 1 1 . Largest Inventory Capacity 36 | 8 16 16 16 16 20 20 28 28 28 28 28 28 28 28 32 28 28 36 36 36 36 36 36 36 36 36 36 36 36 36 36 36 28 Average Capacity 31 | 6 15 16 16 16 18 20 22 28 28 28 28 28 28 28 28 28 28 35 36 36 36 36 36 36 36 36 36 36 36 36 36 31 27 Most Carried 36 | 7 16 16 16 16 19 20 26 28 28 28 28 28 28 28 28 28 28 36 36 36 36 36 36 36 36 36 36 36 36 36 36 36 28 Average Carried 30 | 6 12 15 15 14 17 19 20 27 27 27 27 27 27 27 28 28 28 34 35 35 34 34 35 35 35 34 35 34 35 35 35 27 27 Final Capacity 36 | 8 16 16 16 16 20 20 28 28 28 28 28 28 28 28 28 28 28 36 36 36 36 36 36 36 36 36 36 36 36 36 36 28 4 Final Carried 36 | 7 16 16 16 16 18 20 26 28 28 28 26 28 28 28 28 28 28 36 36 36 36 36 36 36 36 36 36 34 34 36 36 28 3 Class Distribution -------------------- 59% | Hauler-Mutant 9% | Bothacker-Mutant 6% | Scavenger-Mutant 6% | Alien-Mutant 6% | Mutant 5% | Alien-Skirmisher 3% | Alien-Gunner Dominant Class ---------------- Mutant | -10/Materials Mutant | -10/Mines Mutant | -9/Materials Mutant | -9/Mines Hauler-Mutant | -9/Exiles Hauler-Mutant | -8/Mines Hauler-Mutant | -8/Materials Hauler-Mutant | -8/Garrison Scavenger-Mutant | -7/Factory Scavenger-Mutant | -7/Garrison Bothacker-Mutant | -6/Factory Hauler-Mutant | -6/Waste Hauler-Mutant | -6/Factory Hauler-Mutant | -6/Lower Caves Hauler-Mutant | -6/Lower Caves Hauler-Mutant | -6/Data Miner Hauler-Mutant | -5/Proximity Caves Hauler-Mutant | -5/Factory Hauler-Mutant | -5/Garrison Hauler-Mutant | -5/Factory Hauler-Mutant | -5/Garrison Bothacker-Mutant | -4/Factory Hauler-Mutant | -4/Waste Hauler-Mutant | -4/Factory Hauler-Mutant | -4/Garrison Bothacker-Mutant | -3/Research Hauler-Mutant | -3/Testing Hauler-Mutant | -2/Research Hauler-Mutant | -2/Quarantine Hauler-Mutant | -2/Section 7 Hauler-Mutant | -1/Access Hauler-Mutant | -1/Command Alien-Skirmisher | -1/Access_0 Resources | -11 -10 -10 -9 -9 -9 -8 -8 -8 -7 -7 -6 -6 -6 -6 -6 -6 -5 -5 -5 -5 -5 -4 -4 -4 -4 -3 -3 -2 -2 -2 -1 -1 -1 ----------- Run | Scr Mat Min Mat Min Exi Min Mat Gar Fac Gar Fac Was Fac Low Low Dat Pro Fac Gar Fac Gar Fac Was Fac Gar Res Tes Res Qua Sec Acc Com Ac0 Matter Collected 22701 | 260 . 101 732 246 40 82 307 376 240 397 469 715 286 488 70 . 80 702 608 873 811 803 1169 976 467 699 1655 284 816 2209 655 2684 2401 Remotely 4745 | . . . . . . . . . . . 187 . . . . . . . . . 150 . . 450 . 544 870 129 122 531 . 1108 654 Salvage Created 34940 | 142 . 100 963 326 . 85 972 635 132 841 460 1750 129 1204 75 . 90 343 1353 1067 1684 1164 2289 1535 1285 834 1310 284 1351 3298 2040 3545 3654 Parts 1622 | 11 . 13 75 15 . 15 37 18 12 35 28 49 1 40 1 . 3 29 68 42 85 46 54 82 57 52 101 15 54 174 88 109 213 Haulers Intercepted 4 | . . . 2 . . . 2 . . . . . . . . . . . . . . . . . . . . . . . . . . Recyclers Shooed 13 | . . . 3 . . . 1 . . . 1 . . . . . . 1 . . . 1 . 2 . . . . . . 1 3 . Parts Field Recycled . | . . . . . . . . . . . . . . . . . . . . . . . . . . . . . . . . . . Retrieved Matter . | . . . . . . . . . . . . . . . . . . . . . . . . . . . . . . . . . . Parts Self-Destructed 27 | . . . . . . . . . . . . . . 16 1 . 10 . . . . . . . . . . . . . . . . Prevented 19 | . . . . . . . . . . . . . . 18 . . 1 . . . . . . . . . . . . . . . . Kills | -11 -10 -10 -9 -9 -9 -8 -8 -8 -7 -7 -6 -6 -6 -6 -6 -6 -5 -5 -5 -5 -5 -4 -4 -4 -4 -3 -3 -2 -2 -2 -1 -1 -1 ------- Run | Scr Mat Min Mat Min Exi Min Mat Gar Fac Gar Fac Was Fac Low Low Dat Pro Fac Gar Fac Gar Fac Was Fac Gar Res Tes Res Qua Sec Acc Com Ac0 Combat Hostiles Destroyed 480 | . . 5 25 11 . 8 13 14 2 22 9 6 . 17 1 . 1 6 22 16 28 18 4 22 24 12 18 3 23 48 32 28 42 Melee 1 | . . . . . . . 1 . . . . . . . . . . . . . . . . . . . . . . . . . . Guns 155 | . . 1 15 3 . 1 6 4 2 1 3 6 . 2 1 . 1 5 9 11 10 5 3 8 . 8 11 . . 1 2 2 34 Cannons 111 | . . . . 5 . 1 4 2 . . . . . . . . . . 1 1 . 2 1 3 1 2 3 2 18 31 15 11 8 AOE 120 | . . 4 10 3 . 6 2 7 . 14 5 . . 14 . . . . 4 . 7 7 . 5 16 2 3 . . . 7 4 . Classes Destroyed 21 | 2 . 2 7 . . . 1 . 2 . . 1 . 1 . . . . 1 . . . 2 . . . . . . 1 . 1 . Worker 12 | . . . 1 . . 1 1 . 1 . . . . . . . . . . . . 1 . 4 . . 1 . . 1 . 1 . Builder 9 | . . . 2 . . . . . . . . . . . . . . . . . . . . 1 . 1 . . . 1 4 . . Tunneler 4 | 2 . . . 1 . . . . . . . . . . . . . . . . . . . . . 1 . . . . . . . Hauler 4 | . . . 2 . . . 2 . . . . . . . . . . . . . . . . . . . . . . . . . . Recycler 15 | 1 . . 1 . . . 2 . . . . . 1 . . . . . . 1 . 1 . 1 . . 2 . . . . 5 . Operator 1 | . . . . . . . . . 1 . . . . . . . . . . . . . . . . . . . . . . . . Watcher 25 | . . . 4 . . . 2 . . . . . . . . . . 1 . 1 1 . . 2 . . . 1 3 5 3 2 . Swarmer 90 | . . 3 11 4 . 8 . . . 11 . . . 1 . . . . 5 . 8 4 . 5 14 2 4 . . . 6 4 . Grunt 113 | . . 2 7 5 . . 8 9 . 4 1 . . 12 . . . . 10 3 7 9 . 1 7 6 1 . 2 7 12 . . Brawler 5 | . . . 1 . . . 1 1 . . . . . 1 . . . . . . . . . 1 . . . . . . . . . Duelist 5 | . . . 1 . . . . . . . 1 . . 1 . . . . 1 . . . . 1 . . . . . . . . . Sentry 45 | . . . 5 1 . . 1 1 . 5 . . . 1 1 . 1 . 3 1 7 3 . 4 1 1 . 1 . 3 2 3 . Hunter 42 | . . . . . . . 3 3 . 2 4 . . 1 . . . 1 2 2 2 . . 2 1 . . . 7 2 4 6 . Programmer 110 | . . . . . . . . . 2 . 3 . . . . . . 5 . 10 2 2 . 8 . 4 13 2 14 30 8 7 . Behemoth 6 | . . . . . . . . . . . . . . . . . . . 1 . 2 . . . 1 . . . . 1 . 1 . Compactor 10 | . . . . . . . . . . . . 6 . . . . . . . . . . 4 . . . . . . . . . . S7 Guard 3 | . . . . . . . . . . . . . . . . . . . . . . . . . . . . . . 3 . . . M Guard 2 | . . . . . . . . . . . . . . . . . . . . . . . . . . . . . . . . 2 . Enhanced Grunt 25 | . . . . . . . . . . . . . . . . . . . . . . . . . . . . . . . . . 25 Enhanced Sentry 2 | . . . . . . . . . . . . . . . . . . . . . . . . . . . . . . . . . 2 Enhanced Hunter 8 | . . . . . . . . . . . . . . . . . . . . . . . . . . . . . . . . . 8 Combat Programmer 2 | . . . . . . . . . . . . . . . . . . . . . . . . . . . . . . . . 2 . Executioner 2 | . . . . . . . . . . . . . . . . . . . . . . . . . . . . . . 2 . . . Alpha 7 1 | . . . . . . . . . . . . . . . . . . . . . . . . . . . . . . . . 1 . Samaritan 1 | . . . . . . . . . . . . . . 1 . . . . . . . . . . . . . . . . . . . Surgeon 2 | . . . . . . . . . . . . . . . . . . . . . . . 2 . . . . . . . . . . Wasp 6 | . . . . . . . . . . . . . . . . . . . . . . . 6 . . . . . . . . . . Thug 7 | . . . . . . . . . . . . . . . . . . . . . . . 7 . . . . . . . . . . Butcher 2 | . . . . . . . . . . . . . . . . . . . . . . . 2 . . . . . . . . . . Martyr 2 | . . . . . . . . . . . . . . . . . . . . . . . 2 . . . . . . . . . . Best Kill Streak 14 | 2 . 3 6 4 . 4 5 7 1 7 4 1 1 7 1 . 1 2 7 3 5 7 1 6 6 4 6 1 5 5 14 5 6 Combat Bots Only 12 | . . 3 5 4 . 4 3 7 1 7 4 1 . 7 1 . 1 2 7 3 5 6 1 6 6 4 4 1 5 4 12 5 6 Max Kills in Single Turn 6 | 1 . 2 3 3 . 3 2 2 1 3 1 1 1 3 1 . 1 1 1 1 4 3 1 3 2 3 4 1 1 2 6 2 2 Gunslinging 1 | . . . . . . . . . . . . . . . . . . . . . . . . . . . . . . . . . 1 Exploded 4 | . . 2 3 3 . 3 2 1 . 3 1 . . 3 . . . . 1 . 4 3 . 3 2 2 2 . . . 4 2 . Melee 1 | . . . . . . . 1 . . . . . . . . . . . . . . . . . . . . . . . . . . Uniques/NPCs Destroyed 10 | . . . . 1 . . . . . . . . . . . . . . . . . . . . . . . . . . . 2 7 YI-UF0 (-9/Mines) MAIN.C Shell (-1/Command) MAIN.C (-1/Command) A8 (-1/Access_0) A6 (-1/Access_0) A5 (-1/Access_0) A4 (-1/Access_0) A2 (-1/Access_0) A3 (-1/Access_0) Architect (-1/Access_0) Combat | -11 -10 -10 -9 -9 -9 -8 -8 -8 -7 -7 -6 -6 -6 -6 -6 -6 -5 -5 -5 -5 -5 -4 -4 -4 -4 -3 -3 -2 -2 -2 -1 -1 -1 -------- Run | Scr Mat Min Mat Min Exi Min Mat Gar Fac Gar Fac Was Fac Low Low Dat Pro Fac Gar Fac Gar Fac Was Fac Gar Res Tes Res Qua Sec Acc Com Ac0 Damage Taken 37495 | . . 92 1058 1015 . 170 926 350 107 1144 1269 56 . 890 87 . 43 360 1014 661 2536 1182 3 896 947 718 428 340 1236 2436 2285 4191 11055 Core 1880 | . . 19 77 58 . 10 65 28 20 95 62 . . 54 . . 19 23 92 . 60 38 . 14 36 19 3 23 64 114 61 217 609 Absorbed by Shields 18449 | . . . . . . . . . . . . . . . . . . . 51 . . 354 . 109 203 262 262 291 782 1911 1567 2313 10344 Reduced by Siege Mode 1606 | . . . . . . . . . . . . . . 19 . . . 1 44 37 153 50 . 33 17 30 31 . 37 118 75 213 748 Core Remaining (%) 82 | 100 . 92 . . . 63 . 83 . 83 . . . . . . 84 . . . 82 . . . 92 . 98 . . 78 . . 48 Volleys Fired 2495 | 8 . 5 91 34 . 12 61 49 12 46 30 56 1 73 17 . 22 76 57 86 92 106 113 106 56 55 114 18 118 328 121 224 308 Largest 4 | 2 . 2 2 2 . 2 2 2 2 2 2 2 2 2 2 . 2 2 2 2 2 2 2 2 2 2 2 2 2 2 2 4 4 Hottest 338 | 40 . 40 100 91 . 88 100 100 96 160 80 108 170 160 160 . 160 178 146 155 130 176 138 143 100 145 120 94 244 180 130 338 201 Shots Fired 3637 | 16 . 8 169 67 . 18 117 57 15 65 33 105 2 85 20 . 25 100 81 120 148 139 144 139 58 86 150 21 120 348 125 303 753 Gun 1815 | 16 . 6 147 41 . 6 68 30 7 44 15 99 1 28 6 . 6 38 45 57 134 45 67 58 13 60 57 3 . 7 8 106 597 Cannon 1532 | . . . 9 25 . 6 44 3 4 . . . 1 35 14 . 17 62 21 58 . 84 40 74 19 19 81 18 117 329 110 186 156 Launcher 219 | . . 2 8 1 . 6 1 24 . 21 16 . . 22 . . 2 . 15 . 14 6 31 7 26 1 4 . 3 . 7 2 . Special 71 | . . . 5 . . . 4 . 4 . 2 6 . . . . . . . 5 . 4 6 . . 6 8 . . 12 . 9 . Kinetic 1519 | 16 . 6 147 41 . 6 44 9 7 1 12 49 . . . . . 35 30 40 4 34 53 56 2 60 57 3 . . 8 46 753 Thermal 1104 | . . . 14 25 . 6 48 3 4 8 3 50 2 59 20 . 23 62 5 51 . 68 40 43 . 12 79 13 98 231 53 84 . Explosive 47 | . . 2 8 1 . 6 1 6 . 5 4 . . . . . . . . . 2 1 . 4 . 1 . . . . 4 2 . Electromagnetic 844 | . . . . . . . 24 39 . 51 12 . . 26 . . 2 3 46 24 142 32 45 36 56 7 6 5 22 105 60 101 . Slashing 61 | . . . . . . . . . . . . . . . . . . . . . . . . . . . . . . . . 61 . Robot Hit Streak 122 | 4 . 3 14 7 . 9 19 7 8 15 11 34 11 38 15 . 19 15 31 122 30 26 18 33 6 36 31 40 18 35 19 38 48 Robot Miss Streak 7 | 2 . 4 3 4 . 2 2 1 1 4 4 6 . 1 . . 1 2 2 3 2 6 7 3 2 1 3 1 1 3 2 3 3 Penetration Max 2 | . . . . . . . . 1 1 . . . . . . . . . . . . . . 2 . 1 1 . . . 1 . 1 Secondary Targets 24 | . . . . . . . . . . . . 1 . . . . . . 1 1 1 2 1 1 . 1 3 . . . . . 12 Max Gunslinging Chain 1 | . . . . . . . . . . . . 1 . . . . . . 1 1 1 1 1 1 . 1 1 . . . . . 1 Capacitor 554 | . . . . . . . . . . . . . . . . . . . . . . . . . . . . . 80 203 87 184 . Shots Hit Robots 2395 | 9 . 3 107 43 . 10 82 22 15 41 23 100 2 36 6 . 7 43 53 64 106 61 120 81 23 66 81 9 64 217 75 251 575 Core Hits 1435 | 6 . 7 55 17 . 9 46 32 7 35 29 55 2 42 2 . 3 37 53 64 57 49 86 53 27 27 41 4 33 62 83 89 323 Critical Hits 154 | . . . 1 . . 1 7 2 . 1 . 2 . . 1 . . . . 2 2 5 3 5 . 2 3 . 20 18 6 31 42 Critical Kills 40 | . . . 1 . . . 4 2 . . . 1 . . . . . . . . . 2 1 3 . . 1 . 10 4 1 3 7 Critical Parts Destroyed 79 | . . . . . . 1 3 . . . . . . . 1 . . . . 2 2 3 2 2 . 2 2 . 10 12 4 12 21 Melee Attacks 77 | . . . . . . . . . 24 . 32 . . . . . . . . . . . . . . . . . . . . 21 . Impact . | . . . . . . . . . . . . . . . . . . . . . . . . . . . . . . . . . . Slashing 55 | . . . . . . . . . 23 . 32 . . . . . . . . . . . . . . . . . . . . . . Piercing 21 | . . . . . . . . . . . . . . . . . . . . . . . . . . . . . . . . 21 . Sneak Attacks 3 | . . . . . . . . . 2 . 1 . . . . . . . . . . . . . . . . . . . . . . Combat Hostiles . | . . . . . . . . . . . . . . . . . . . . . . . . . . . . . . . . . . Follow-up Attacks . | . . . . . . . . . . . . . . . . . . . . . . . . . . . . . . . . . . Damage Inflicted 105087 | 122 . 262 2037 927 . 537 1619 1458 418 1796 1377 2748 54 2018 145 . 266 1324 2086 1987 3566 2621 4477 3646 1929 2362 3166 442 5831 11684 6040 14228 23914 Guns 38067 | 108 . 20 1101 306 . 54 614 311 191 486 332 2748 24 525 145 . 145 810 641 1518 2101 947 1880 1674 75 1541 1560 31 . 290 338 3100 14451 Cannons 44372 | . . . 142 390 . 102 655 40 51 . . . 30 . . . . 438 498 430 . 387 1446 875 413 279 972 411 5461 11183 3255 7451 9463 Explosions 19046 | . . 214 721 178 . 336 312 1107 . 1310 903 . . 1493 . . 121 . 943 . 1465 1266 1151 1053 1441 504 626 . 370 111 2377 1044 . Melee 2879 | . . . . . . . . . 176 . 142 . . . . . . . . . . . . . . . . . . . . 2561 . Ramming 699 | 14 . 28 49 53 . 45 38 . . . . . . . . . . 76 4 39 . 21 . 44 . 38 8 . . 100 70 72 . Kinetic 39302 | 108 . 20 1101 306 . 54 292 157 191 . 332 1589 . . . . . 810 458 1126 178 582 1672 1535 52 1541 1560 31 . . 338 1355 23914 Thermal 29606 | . . . 166 390 . 102 746 102 51 130 223 1159 54 708 145 . 145 329 113 186 228 389 1446 464 82 . 1183 200 4708 9036 1788 5333 . Explosive 7596 | . . 214 721 178 . 336 52 343 . 649 315 . . . . . . . . . 581 693 . 408 . 504 . . . . 1723 879 . Electromagnetic 23157 | . . . . . . . 491 856 . 1017 365 . . 1310 . . 121 109 1511 636 2579 936 1359 1195 1795 279 415 211 1123 2548 2121 2180 . Impact . | . . . . . . . . . . . . . . . . . . . . . . . . . . . . . . . . . . Slashing 2166 | . . . . . . . . . 176 . 142 . . . . . . . . . . . . . . . . . . . . 1848 . Piercing 2561 | . . . . . . . . . . . . . . . . . . . . . . . . . . . . . . . . 2561 . Highest Corruption 14 | . . . . . . . . . 1 1 4 14 . . . . . . 1 4 2 1 1 . . 1 2 1 5 3 . . . Average Corruption 2 | . . . . . . . . . 1 1 4 7 . . . . . . 1 3 1 1 1 . . 1 1 1 2 1 . . . Corruption Purged 34 | . . . . . . . . . . . . 16 . . . . . . 1 4 2 . 2 . . . 1 . 6 2 . . . Effects 227 | . . . . . . . . . 2 5 . 110 . . . . . . 6 26 6 8 5 . . 1 8 7 10 33 . . . Message Errors 64 | . . . . . . . . . 1 3 . 21 . . . . . . 3 12 2 3 . . . . 4 3 5 7 . . . Matter Fused 32 | . . . . . . . . . . . . 24 . . . . . . . 3 . . . . . . . . 1 4 . . . Heat Flow Errors 15 | . . . . . . . . . . . . 11 . . . . . . . 1 1 . . . . . . . . 2 . . . Energy Discharges 35 | . . . . . . . . . . . . 12 . . . . . . 1 4 2 1 1 . . . . 2 2 10 . . . Parts Rejected 1 | . . . . . . . . . . . . 1 . . . . . . . . . . . . . . . . . . . . . Data Loss (minor) 31 | . . . . . . . . . . 1 . 9 . . . . . . 2 5 . 3 . . . . 3 . 2 6 . . . Data Loss (major) 5 | . . . . . . . . . . . . 5 . . . . . . . . . . . . . . . . . . . . . Misfires 3 | . . . . . . . . . . . . 3 . . . . . . . . . . . . . . . . . . . . . Alerts 1 | . . . . . . . . . . . . 1 . . . . . . . . . . . . . . . . . . . . . Misdirections 4 | . . . . . . . . . . . . 4 . . . . . . . . . . . . . . . . . . . . . Targeting Errors 31 | . . . . . . . . . . 1 . 15 . . . . . . . 1 1 1 4 . . 1 1 2 . 4 . . . Weapon Failures 5 | . . . . . . . . . 1 . . 4 . . . . . . . . . . . . . . . . . . . . . Overload Shots 4 | . . . . . . . . . . . . . . . . . . . . . . . . . . . 2 . 2 . . . . Overflow Damage 3958 | . . . 52 15 . . 9 8 57 37 105 . . 48 . . . 18 12 4 11 33 130 74 . 43 107 12 524 1178 365 789 327 Projectiles 2903 | . . . . 8 . . 9 . . . . . . . . . . 16 . 4 . . 129 . . . 72 12 524 1100 257 445 327 Explosions 749 | . . . 52 7 . . . 8 . 37 34 . . 48 . . . . 12 . 11 33 1 74 . 43 35 . . 78 108 168 . Melee 306 | . . . . . . . . . 57 . 71 . . . . . . 2 . . . . . . . . . . . . . 176 . Knockbacks 59 | . . . . . . . . . . . . . . . . . . 1 . . . 3 . 1 . . . . . . 1 2 51 Impact 4 | . . . . . . . . . . . . . . . . . . 1 . . . . . 1 . . . . . . 1 1 . Kinetic 55 | . . . . . . . . . . . . . . . . . . . . . . 3 . . . . . . . . . 1 51 Secondary . | . . . . . . . . . . . . . . . . . . . . . . . . . . . . . . . . . . Self-Inflicted Damage 1221 | . . . . 40 . 63 76 2 . 33 99 . . 118 . . . . 39 . 153 62 3 80 1 73 14 . 15 . 131 219 . Shots 44 | . . . . 1 . 2 3 1 . 4 5 . . 7 . . . . 3 . 4 1 1 1 1 1 1 . 2 . 2 4 . Rammed 58 | 6 . 4 7 9 . 3 5 . . . . . . . . . . 4 1 2 . 2 . 2 . 3 1 . . 4 4 1 . Targets Rammed 64 | 7 . 4 8 10 . 3 6 . . . . . . . . . . 4 1 3 . 2 . 2 . 3 1 . . 5 4 1 . Kicked 1 | 1 . . . . . . . . . . . . . . . . . . . . . . . . . . . . . . . . . Crushed 5 | . . . 1 1 . . 1 . . . . . . . . . . . . 1 . . . . . . . . . 1 . . . Highest Temperature 472 | . . 1 204 388 . 225 351 14 . 102 8 472 370 258 321 . 151 86 156 108 214 270 324 437 203 7 20 . 148 385 . 39 . Average Temperature 85 | . . 1 48 173 . 76 109 8 . 27 4 142 125 74 101 . 50 16 43 43 61 55 117 88 77 4 11 . 52 95 . 39 . Received Heat Transfer 2986 | . . 12 285 120 . . 234 126 . 177 48 . . 126 30 . 9 6 126 63 387 144 . 69 55 174 9 16 32 166 77 111 384 Effects 16 | . . . . 4 . . 1 . . . . 6 . . . . . . . . . . 1 4 . . . . . . . . . Shutdowns 5 | . . . . 1 . . 1 . . . . 1 . . . . . . . . . . . 2 . . . . . . . . . Energy Bleed 3 | . . . . 2 . . . . . . . 1 . . . . . . . . . . . . . . . . . . . . . Interference 5 | . . . . . . . . . . . . 3 . . . . . . . . . . . 2 . . . . . . . . . Short Circuit 1 | . . . . . . . . . . . . . . . . . . . . . . . 1 . . . . . . . . . . Damage (minor) 2 | . . . . 1 . . . . . . . 1 . . . . . . . . . . . . . . . . . . . . . Siege Activations 168 | . . . . . . . . . . . . . . 3 . . . 3 9 8 17 6 . 8 8 5 6 2 13 24 8 16 32 Total Turns 5788 | . . . . . . . . . . . . . . 39 . . . 47 1418 195 315 94 . 146 145 112 120 47 190 396 124 1856 544 Longest Duration 1611 | . . . . . . . . . . . . . . 18 . . . 22 1111 53 113 40 . 56 57 36 37 26 45 36 34 1611 83 Robots Corrupted 96 | . . . . . . . . 1 . 7 1 . . 1 . . . 1 8 4 11 4 2 7 7 . 1 1 6 15 8 11 . Combat Hostiles 88 | . . . . . . . . 1 . 7 1 . . . . . . 1 8 4 11 4 . 6 7 . 1 1 5 13 8 10 . Parts Fried 215 | . . . . . . . 2 3 . 10 4 . . 9 . . . 1 12 8 17 9 11 9 17 . 4 3 13 37 19 27 . Impact Corruptions 3 | . . . . . . . . . . . . . . . . . . 1 . . . . . . . . . . . . . 2 . Robots Melted 4 | . . . . . . . . . . . . . . 1 . . . . . . . . . . . . . . . 3 . . . Combat Hostiles 4 | . . . . . . . . . . . . . . 1 . . . . . . . . . . . . . . . 3 . . . Parts Melted 37 | . . . 1 2 . . 1 . . . . . 1 4 3 . 1 . . 1 . . . . . . 1 1 4 16 . 1 . Heat Transferred 19664 | . . . 309 703 . 185 1234 224 74 124 250 1776 74 853 222 . 222 450 50 100 150 250 900 225 100 . 953 148 2257 5145 911 1775 . Parts Sabotaged . | . . . . . . . . . . . . . . . . . . . . . . . . . . . . . . . . . . Parts Stolen . | . . . . . . . . . . . . . . . . . . . . . . . . . . . . . . . . . . Parts Stripped . | . . . . . . . . . . . . . . . . . . . . . . . . . . . . . . . . . . Power Chain Reactions 35 | . . . . . . . 1 3 . 1 4 . . 7 . . . . 2 . 3 2 2 1 3 . 1 . . 1 1 3 . Missiles Intercepted . | . . . . . . . . . . . . . . . . . . . . . . . . . . . . . . . . . . Alert | -11 -10 -10 -9 -9 -9 -8 -8 -8 -7 -7 -6 -6 -6 -6 -6 -6 -5 -5 -5 -5 -5 -4 -4 -4 -4 -3 -3 -2 -2 -2 -1 -1 -1 ------- Run | Scr Mat Min Mat Min Exi Min Mat Gar Fac Gar Fac Was Fac Low Low Dat Pro Fac Gar Fac Gar Fac Was Fac Gar Res Tes Res Qua Sec Acc Com Ac0 Peak Influence 1277 | 15 9 138 477 298 . 353 287 792 463 698 405 101 19 . . . . 138 668 530 908 625 86 536 1102 950 520 200 228 659 1277 979 . Initial 816 | . 9 3 . 153 . . 35 44 415 87 366 101 . . . . . 32 18 350 54 476 86 . 347 619 366 144 52 91 392 816 . Average 265 | 5 9 54 181 115 . 116 139 549 285 460 245 12 6 . . . . 40 406 168 525 299 21 130 762 768 129 99 101 287 689 244 . Maximum Alert Level 4 | . . . 2 1 . 1 1 3 2 2 2 . . . . . . . 2 2 3 2 . 2 4 3 2 1 1 2 4 3 . Low Security (%) 42 | 100 100 100 55 65 . 54 64 2 21 16 33 100 100 . . . . 100 17 58 13 30 100 78 . . 79 98 95 41 . 8 . Level 1 20 | . . . 27 34 . 45 35 28 48 5 53 . . . . . . . 14 33 4 31 . 10 11 . 15 1 4 28 27 29 . Level 2 32 | . . . 17 . . . . 48 29 77 13 . . . . . . . 67 8 68 37 . 10 41 27 4 . . 29 33 60 . Level 3 3 | . . . . . . . . 21 . . . . . . . . . . . . 13 . . . 13 72 . . . . 11 1 . Level 4 1 | . . . . . . . . . . . . . . . . . . . . . . . . . 33 . . . . . 27 . . Level 5 . | . . . . . . . . . . . . . . . . . . . . . . . . . . . . . . . . . . High Security . | . . . . . . . . . . . . . . . . . . . . . . . . . . . . . . . . . . Max Security . | . . . . . . . . . . . . . . . . . . . . . . . . . . . . . . . . . . Squads Dispatched 84 | . . . 1 3 . . 1 . 5 . 5 . . . . . . 5 . 8 . 5 . 10 . 3 5 2 7 15 6 3 . Investigation 9 | . . . . . . . . . . . 1 . . . . . . . . 1 . 1 . 3 . 1 . 1 . . 1 . . Extermination 48 | . . . . . . . . . 3 . 3 . . . . . . 3 . 5 . 1 . 4 . 1 4 1 6 12 2 3 . Reinforcement 18 | . . . 1 3 . . . . 1 . 1 . . . . . . 2 . 2 . 2 . . . . 1 . 1 2 2 . . Assault 4 | . . . . . . . . . . . . . . . . . . . . . . 1 . . . 1 . . . 1 1 . . Garrison 5 | . . . . . . . 1 . 1 . . . . . . . . . . . . . . 3 . . . . . . . . . Intercept . | . . . . . . . . . . . . . . . . . . . . . . . . . . . . . . . . . . Construction Impeded 8 | . . . . 3 . . . . . . 1 . . . . . . 1 . . . 1 . . . . . . . . 2 . . Haulers Reinforced . | . . . . . . . . . . . . . . . . . . . . . . . . . . . . . . . . . . Alert ID Control Effect 2 | . . . . . . . . . . . . . . . . . . . . . . 1 . . . 1 . . . . . . . Stealth | -11 -10 -10 -9 -9 -9 -8 -8 -8 -7 -7 -6 -6 -6 -6 -6 -6 -5 -5 -5 -5 -5 -4 -4 -4 -4 -3 -3 -2 -2 -2 -1 -1 -1 --------- Run | Scr Mat Min Mat Min Exi Min Mat Gar Fac Gar Fac Was Fac Low Low Dat Pro Fac Gar Fac Gar Fac Was Fac Gar Res Tes Res Qua Sec Acc Com Ac0 Distress Signals 43 | . . . 1 . . . 2 . . . . . . . . . . . . 4 . 1 . 3 . . 1 . . 1 3 27 . Communications Jammed 60 | . . . . . . . . . . . . . . . . . . . . . . . . . . . 23 . 11 26 . . . Distress Signals 60 | . . . . . . . . . . . . . . . . . . . . . . . . . . . 23 . 11 26 . . . Times Spotted 684 | . . 5 42 11 . 9 27 14 7 22 17 6 . 21 1 . 3 16 23 29 35 24 5 34 24 22 32 8 33 65 43 38 68 Peak Tracking Total 11 | . . 3 5 4 . 4 4 6 1 6 5 3 . 7 1 . 2 2 7 5 6 7 1 6 5 5 7 3 3 4 11 6 5 Tactical Retreats 41 | . . . . . . 1 4 1 . 1 . . . 6 . . . . 2 1 1 1 . 2 1 6 . . 1 3 3 4 3 Traps | -11 -10 -10 -9 -9 -9 -8 -8 -8 -7 -7 -6 -6 -6 -6 -6 -6 -5 -5 -5 -5 -5 -4 -4 -4 -4 -3 -3 -2 -2 -2 -1 -1 -1 ------- Run | Scr Mat Min Mat Min Exi Min Mat Gar Fac Gar Fac Was Fac Low Low Dat Pro Fac Gar Fac Gar Fac Was Fac Gar Res Tes Res Qua Sec Acc Com Ac0 Traps Triggered 74 | . . . . . . . . 9 . 8 2 . . . . . . 2 5 . 9 2 . 4 7 . . . 4 3 . 19 . Indirectly 4 | . . . . . . . . 3 . . . . . . . . . . . . . . . . 1 . . . . . . . . Trap Hack Attempts . | . . . . . . . . . . . . . . . . . . . . . . . . . . . . . . . . . . Triggered . | . . . . . . . . . . . . . . . . . . . . . . . . . . . . . . . . . . Disarmed . | . . . . . . . . . . . . . . . . . . . . . . . . . . . . . . . . . . Reprogrammed . | . . . . . . . . . . . . . . . . . . . . . . . . . . . . . . . . . . Reused . | . . . . . . . . . . . . . . . . . . . . . . . . . . . . . . . . . . Traps Extracted . | . . . . . . . . . . . . . . . . . . . . . . . . . . . . . . . . . . Installed . | . . . . . . . . . . . . . . . . . . . . . . . . . . . . . . . . . . Triggered 9 | . . . . . . . . . . . . . . 2 . . . . . . . 2 . . . . . . 1 1 . 3 . Machines | -11 -10 -10 -9 -9 -9 -8 -8 -8 -7 -7 -6 -6 -6 -6 -6 -6 -5 -5 -5 -5 -5 -4 -4 -4 -4 -3 -3 -2 -2 -2 -1 -1 -1 ---------- Run | Scr Mat Min Mat Min Exi Min Mat Gar Fac Gar Fac Was Fac Low Low Dat Pro Fac Gar Fac Gar Fac Was Fac Gar Res Tes Res Qua Sec Acc Com Ac0 Machines Disabled 110 | . . 1 2 . . 6 3 4 2 1 1 . . . . . . 1 2 . 7 6 . 3 3 3 10 . 11 21 2 6 15 Max in Single Turn 4 | . . 1 1 . . 4 2 1 1 1 1 . . . . . . 1 1 . 1 2 . 2 1 1 1 . 1 1 1 1 1 Garrison Access 7 | . . . . . . . . . . . 1 . . . . . . . . . . 2 . . . . 1 1 . 1 1 . . Garrison Relay 11 | . . . . . . . . 2 . 1 . . . . . . . . 2 . 3 . . . 3 . . . . . . . . Phase Generator 2 | . . . . . . . . 1 . . . . . . . . . . . . . . . . . . . . . . . 1 . Machines Sabotaged . | . . . . . . . . . . . . . . . . . . . . . . . . . . . . . . . . . . Garrisons Compromised . | . . . . . . . . . . . . . . . . . . . . . . . . . . . . . . . . . . Overloaded Fab Kills . | . . . . . . . . . . . . . . . . . . . . . . . . . . . . . . . . . . Fab Network Shutdowns . | . . . . . . . . . . . . . . . . . . . . . . . . . . . . . . . . . . Hacking | -11 -10 -10 -9 -9 -9 -8 -8 -8 -7 -7 -6 -6 -6 -6 -6 -6 -5 -5 -5 -5 -5 -4 -4 -4 -4 -3 -3 -2 -2 -2 -1 -1 -1 --------- Run | Scr Mat Min Mat Min Exi Min Mat Gar Fac Gar Fac Was Fac Low Low Dat Pro Fac Gar Fac Gar Fac Was Fac Gar Res Tes Res Qua Sec Acc Com Ac0 Machines Accessed 122 | . . . 6 . 1 1 3 . 5 . 8 . 1 . . 4 1 10 . 10 . 11 . 7 . 5 7 4 12 11 6 7 2 Terminals 78 | . . . 5 . . 1 2 . 3 . 7 . . . . . 1 6 . 7 . 6 . 3 . 5 5 3 7 6 4 7 . Fabricators 9 | . . . . . . . . . 1 . . . 1 . . . . 1 . 1 . 3 . 2 . . . . . . . . . Repair Stations 9 | . . . 1 . . . . . . . . . . . . . . 2 . 1 . . . 1 . . 1 . 2 1 . . . Recycling Units . | . . . . . . . . . . . . . . . . . . . . . . . . . . . . . . . . . . Scanalyzers 7 | . . . . . . . . . . . . . . . . . . . . . . . . . . . . . 3 3 1 . . Garrison Access 12 | . . . . . . . 1 . 1 . 1 . . . . . . 1 . 1 . 2 . 1 . . 1 1 . 1 1 . . Total Hacks 307 | . . . 14 . 1 4 4 . 18 . 20 . 2 . . 26 1 25 . 25 . 26 . 14 . 16 13 9 23 20 12 12 22 Successful 188 | . . . 8 . 1 1 3 . 12 . 8 . 2 . . 26 1 12 . 16 . 10 . 6 . 9 7 5 11 15 6 7 22 Failed 118 | . . . 5 . . 3 1 . 6 . 12 . . . . . . 13 . 9 . 16 . 8 . 7 6 4 12 5 6 5 . Catastrophic 21 | . . . . . . 1 . . 1 . 2 . . . . . . 2 . 2 . 3 . 3 . 3 . 1 2 1 . . . Database Lockouts 1 | . . . 1 . . . . . . . . . . . . . . . . . . . . . . . . . . . . . . Manual 123 | . . . 10 . . 4 3 . 14 . 12 . . . . . . 12 . 16 . 11 . 4 . 9 5 2 10 . 4 7 . Terminals 180 | . . . 12 . . 4 3 . 12 . 19 . . . . . 1 15 . 18 . 17 . 5 . 16 8 7 13 9 9 12 . Fabricators 27 | . . . . . . . . . 5 . . . 2 . . . . 4 . 4 . 6 . 6 . . . . . . . . . Repair Stations 19 | . . . 2 . . . . . . . . . . . . . . 5 . 2 . . . 2 . . 3 . 3 2 . . . Recycling Units . | . . . . . . . . . . . . . . . . . . . . . . . . . . . . . . . . . . Scanalyzers 17 | . . . . . . . . . . . . . . . . . . . . . . . . . . . . . 7 8 2 . . Garrison Access 15 | . . . . . . . 1 . 1 . 1 . . . . . . 1 . 1 . 3 . 1 . . 2 2 . 1 1 . . Terminal Hacks 104 | . . . 5 . 1 1 1 . 4 . 5 . . . . 26 1 3 . 7 . 4 . . . 6 . 3 3 7 1 4 22 Record 30 | . . . . . 1 . . . . . . . . . . 11 1 . . . . . . . . . . . 1 . . . 16 Part Schematic 13 | . . . 1 . . . . . 2 . . . . . . 6 . . . 2 . 1 . . . 1 . . . . . . . Robot Schematic 6 | . . . . . . . . . . . . . . . . 6 . . . . . . . . . . . . . . . . . Robot Analysis 1 | . . . . . . 1 . . . . . . . . . . . . . . . . . . . . . . . . . . . Prototype ID Bank 7 | . . . 1 . . . . . . . . . . . . 3 . 1 . . . . . . . 1 . . . 1 . . . Open Door 5 | . . . . . . . . . . . . . . . . . . . . . . . . . . . . . . 4 . 1 . Branch Access Points 6 | . . . . . . . . . . . 1 . . . . . . 1 . . . 1 . . . 1 . 1 . . 1 . . Terminal Index 6 | . . . . . . . . . 1 . 1 . . . . . . . . . . 1 . . . 1 . 1 . . . 1 . Fabricator Index 2 | . . . . . . . . . 1 . 1 . . . . . . . . . . . . . . . . . . . . . . Unreport Threat 10 | . . . . . . . 1 . . . . . . . . . . . . 1 . 1 . . . 2 . 1 2 1 . 1 . Locate Traps 1 | . . . . . . . . . . . 1 . . . . . . . . . . . . . . . . . . . . . . Transport Status 1 | . . . 1 . . . . . . . . . . . . . . . . . . . . . . . . . . . . . . Recall Extermination 1 | . . . . . . . . . . . . . . . . . . . . . . . . . . . . . . 1 . . . Hauler Manifests 1 | . . . 1 . . . . . . . . . . . . . . . . . . . . . . . . . . . . . . Registered Prototypes 1 | . . . . . . . . . . . . . . . . . . . . . . . . . . . . . . . . 1 . Zone Layout 7 | . . . 1 . . . . . . . 1 . . . . . . 1 . 4 . . . . . . . . . . . . . Gate Test 138-A 2 | . . . . . . . . . . . . . . . . . . . . . . . . . . . . . . . . . 2 Gate Test 138-B 2 | . . . . . . . . . . . . . . . . . . . . . . . . . . . . . . . . . 2 Gate Test 138-END 2 | . . . . . . . . . . . . . . . . . . . . . . . . . . . . . . . . . 2 Fabricator Hacks 12 | . . . . . . . . . 2 . . . 2 . . . . 2 . 2 . 1 . 3 . . . . . . . . . Load Schematic 7 | . . . . . . . . . 1 . . . 1 . . . . 1 . 1 . 1 . 2 . . . . . . . . . Build 5 | . . . . . . . . . 1 . . . 1 . . . . 1 . 1 . . . 1 . . . . . . . . . Repair Station Hacks 14 | . . . 2 . . . . . . . . . . . . . . 3 . 1 . . . 2 . . 3 . 1 2 . . . Scan Component 9 | . . . 1 . . . . . . . . . . . . . . 2 . 1 . . . 1 . . 2 . 1 1 . . . Repair 5 | . . . 1 . . . . . . . . . . . . . . 1 . . . . . 1 . . 1 . . 1 . . . Recycling Unit Hacks . | . . . . . . . . . . . . . . . . . . . . . . . . . . . . . . . . . . Scanalyzer 10 | . . . . . . . . . . . . . . . . . . . . . . . . . . . . . 4 5 1 . . Insert Component 8 | . . . . . . . . . . . . . . . . . . . . . . . . . . . . . 2 5 1 . . Analyze 2 | . . . . . . . . . . . . . . . . . . . . . . . . . . . . . 2 . . . . Garrison Access Hacks 15 | . . . . . . . 1 . 1 . 1 . . . . . . 1 . 1 . 3 . 1 . . 2 2 . 1 1 . . Unlock Access 5 | . . . . . . . 1 . 1 . . . . . . . . 1 . 1 . . . 1 . . . . . . . . . Seal Access 7 | . . . . . . . . . . . 1 . . . . . . . . . . 2 . . . . 1 1 . 1 1 . . Coupler Status 3 | . . . . . . . . . . . . . . . . . . . . . . 1 . . . . 1 1 . . . . . Unauthorized Hacks 33 | . . . 1 . . . 1 . 5 . 2 . . . . . . 3 . 5 . 2 . . . 3 2 . 3 . 3 3 . Terminals 30 | . . . 1 . . . 1 . 4 . 2 . . . . . . 3 . 3 . 2 . . . 3 2 . 3 . 3 3 . Track 8 | . . . . . . . . . 1 . . . . . . . . 2 . 1 . . . . . . 1 . 1 . . 2 . Assimilate 3 | . . . . . . . . . 1 . 1 . . . . . . . . 1 . . . . . . . . . . . . . Botnet 13 | . . . 1 . . . 1 . 1 . 1 . . . . . . 1 . 1 . 1 . . . 2 1 . 1 . 2 . . Operators 6 | . . . . . . . . . 1 . . . . . . . . . . . . 1 . . . 1 . . 1 . 1 1 . Fabricators 3 | . . . . . . . . . 1 . . . . . . . . . . 2 . . . . . . . . . . . . . Prioritize 2 | . . . . . . . . . 1 . . . . . . . . . . 1 . . . . . . . . . . . . . Siphon 1 | . . . . . . . . . . . . . . . . . . . . 1 . . . . . . . . . . . . . Repair Stations . | . . . . . . . . . . . . . . . . . . . . . . . . . . . . . . . . . . Recycling Units . | . . . . . . . . . . . . . . . . . . . . . . . . . . . . . . . . . . Scanalyzers . | . . . . . . . . . . . . . . . . . . . . . . . . . . . . . . . . . . Garrison Access . | . . . . . . . . . . . . . . . . . . . . . . . . . . . . . . . . . . Data Cores Recovered . | . . . . . . . . . . . . . . . . . . . . . . . . . . . . . . . . . . Used . | . . . . . . . . . . . . . . . . . . . . . . . . . . . . . . . . . . Hacking Detections 98 | . . . 6 . . 1 2 . 3 . 7 . 1 . . . . 8 . 9 . 9 . 7 . 5 7 3 12 6 5 7 . Full Trace Events 6 | . . . . . . . . . . . 1 . . . . . . . . . . 1 . 1 . 1 . 1 . . 1 . . Feedback Events 1 | . . . . . . . . . . . . . . . . . . . . . . . . . . . . 1 . . . . . Corruption 1 | . . . . . . . . . . . . . . . . . . . . . . . . . . . . 1 . . . . . Feedback Blocked . | . . . . . . . . . . . . . . . . . . . . . . . . . . . . . . . . . . Robot Schematics Acquired 6 | . . . . . . . . . . . . . . . . 6 . . . . . . . . . . . . . . . . . Robots Built . | . . . . . . . . . . . . . . . . . . . . . . . . . . . . . . . . . . Matter . | . . . . . . . . . . . . . . . . . . . . . . . . . . . . . . . . . . Time . | . . . . . . . . . . . . . . . . . . . . . . . . . . . . . . . . . . Total Robot Build Rating . | . . . . . . . . . . . . . . . . . . . . . . . . . . . . . . . . . . Part Schematics Acquired 13 | . . . 1 . . . . . 2 . . . . . . 6 . . . 2 . 1 . . . 1 . . . . . . . Parts Built 5 | . . . . . . . . . 1 . . . 1 . . . . 1 . 2 . . . . . . . . . . . . . Matter 1047 | . . . . . . . . . 168 . . . 168 . . . . 285 . 192 . . . 234 . . . . . . . . . Time 523 | . . . . . . . . . 84 . . . 42 . . . . 152 . 128 . . . 117 . . . . . . . . . Total Part Build Rating 29 | . . . . . . . . . 4 . . . 4 . . . . 5 . 16 . . . . . . . . . . . . . Parts Repaired 5 | . . . 1 . . . . . . . . . . . . . . 1 . . . . . 1 . . 1 . . 1 . . . Time 159 | . . . 32 . . . . . . . . . . . . . . 44 . . . . . 37 . . 26 . . 20 . . . Parts Recycled . | . . . . . . . . . . . . . . . . . . . . . . . . . . . . . . . . . . Recycled Matter . | . . . . . . . . . . . . . . . . . . . . . . . . . . . . . . . . . . Retrieved Matter . | . . . . . . . . . . . . . . . . . . . . . . . . . . . . . . . . . . Retrieved Components . | . . . . . . . . . . . . . . . . . . . . . . . . . . . . . . . . . . Parts Scanalyzed 1 | . . . . . . . . . . . . . . . . . . . . . . . . . . . . . 1 . . . . Part Schematics Acquired . | . . . . . . . . . . . . . . . . . . . . . . . . . . . . . . . . . . Parts Damaged . | . . . . . . . . . . . . . . . . . . . . . . . . . . . . . . . . . . Bothacking | -11 -10 -10 -9 -9 -9 -8 -8 -8 -7 -7 -6 -6 -6 -6 -6 -6 -5 -5 -5 -5 -5 -4 -4 -4 -4 -3 -3 -2 -2 -2 -1 -1 -1 ------------ Run | Scr Mat Min Mat Min Exi Min Mat Gar Fac Gar Fac Was Fac Low Low Dat Pro Fac Gar Fac Gar Fac Was Fac Gar Res Tes Res Qua Sec Acc Com Ac0 Used RIF Installer 5 | . . . . . . . . 1 . 1 . . . . . . . . 1 . 1 . . . 1 . . . . . . . . Hotswap 1 | . . . . . . . . . . 1 . . . . . . . . . . . . . . . . . . . . . . . Robot Detection 1 | . . . . . . . . . . . . . . . . . . . . . . . . . 1 . . . . . . . . Alert ID Control 1 | . . . . . . . . . . . . . . . . . . . 1 . . . . . . . . . . . . . . Autoassimilate 1 | . . . . . . . . . . . . . . . . . . . . . 1 . . . . . . . . . . . . Robots Hacked 33 | . . . . . . . . . 2 . 2 6 . . . . . . . 3 . 3 6 . . 2 3 . . 5 . 1 . Non-combat 15 | . . . . . . . . . 1 . 1 . . . . . . . . 2 . 2 . . . . 3 . . 5 . 1 . Combat 18 | . . . . . . . . . 1 . 1 6 . . . . . . . 1 . 1 6 . . 2 . . . . . . . Robot Hacks Applied 52 | . . . . . . . . . 3 . 2 6 . . . . . . . 4 . 4 6 . . 3 8 . . 9 . 7 . parse_system 4 | . . . . . . . . . 1 . . . . . . . . . . 1 . . . . . . . . . 2 . . . find_chute 3 | . . . . . . . . . 1 . 1 . . . . . . . . . . 1 . . . . . . . . . . . ignore_repairs 6 | . . . . . . . . . . . . . . . . . . . . . . . . . . . 4 . . 2 . . . purge_threat 15 | . . . . . . . . . . . . . . . . . . . . 1 . 2 . . . . 3 . . 4 . 5 . block_reporting 3 | . . . . . . . . . . . . . . . . . . . . . . . . . . . 1 . . 1 . 1 . map_route 1 | . . . . . . . . . . . . . . . . . . . . 1 . . . . . . . . . . . . . ignore_targets 12 | . . . . . . . . . . . . 6 . . . . . . . . . . 6 . . . . . . . . . . amplify_resonance 1 | . . . . . . . . . . . . . . . . . . . . . . . . . . 1 . . . . . . . overwrite_iff 3 | . . . . . . . . . . . 1 . . . . . . . . . . . . . . 2 . . . . . . . formatsys_low 1 | . . . . . . . . . . . . . . . . . . . . . . . . . . . . . . . . 1 . formatsys_high 3 | . . . . . . . . . 1 . . . . . . . . . . 1 . 1 . . . . . . . . . . . Relay Couplers Released 45 | . . . . . . . . 8 . 5 . . . . . . . . 9 . 11 . . . 11 . . . . 1 . . . Machine Destruction 45 | . . . . . . . . 8 . 5 . . . . . . . . 9 . 11 . . . 11 . . . . 1 . . . Attached 12 | . . . . . . . . . 1 . 2 . . . . . . . . 2 . 2 1 . 1 1 1 . . 1 . . . Robots Rewired 2 | . . . . . . . . . . . . . . 2 . . . . . . . . . . . . . . . . . . . Allies Hacked . | . . . . . . . . . . . . . . . . . . . . . . . . . . . . . . . . . . Hacks Repelled . | . . . . . . . . . . . . . . . . . . . . . . . . . . . . . . . . . . Allies | -11 -10 -10 -9 -9 -9 -8 -8 -8 -7 -7 -6 -6 -6 -6 -6 -6 -5 -5 -5 -5 -5 -4 -4 -4 -4 -3 -3 -2 -2 -2 -1 -1 -1 -------- Run | Scr Mat Min Mat Min Exi Min Mat Gar Fac Gar Fac Was Fac Low Low Dat Pro Fac Gar Fac Gar Fac Was Fac Gar Res Tes Res Qua Sec Acc Com Ac0 Total Allies 32 | . . . . . . . . . 2 . 2 . . 2 . . 1 . . 2 . 1 19 . . 2 . . . . . 1 . Largest Group 19 | . . . . . . . . . 1 . 1 . . 2 . . 1 1 . 1 . 1 19 . . 2 . . . . . 1 . Highest-Rated Group 714 | . . . . . . . . . 21 . 29 . . 40 . . 94 94 . 41 . 56 714 . . 82 . . . . . 26 . Highest-Rated Ally 94 | . . . . . . . . . 21 . 29 . . 20 . . 94 94 . 41 . 56 50 . . 45 . . . . . 26 . Total Orders 4 | . . . . . . . . . . . . . . 2 . . . . . 2 . . . . . . . . . . . . . STAY 2 | . . . . . . . . . . . . . . 1 . . . . . 1 . . . . . . . . . . . . . FOLLOW 2 | . . . . . . . . . . . . . . 1 . . . . . 1 . . . . . . . . . . . . . Ally Attacks 62 | . . . . . . . . . 4 . 3 . . 8 . . 14 18 . 8 . 3 . . . 4 . . . . . . . Total Damage 1861 | . . . . . . . . . 115 . 18 . . 139 . . 423 654 . 239 . 175 . . . 98 . . . . . . . Kills 14 | . . . . . . . . . 1 . . . . 1 . . 4 5 . 1 . 1 . . . 1 . . . . . . . Allies Corrupted 2 | . . . . . . . . . . . . . . . . . . . . . . . 2 . . . . . . . . . . Allies Melted . | . . . . . . . . . . . . . . . . . . . . . . . . . . . . . . . . . . Intel | -11 -10 -10 -9 -9 -9 -8 -8 -8 -7 -7 -6 -6 -6 -6 -6 -6 -5 -5 -5 -5 -5 -4 -4 -4 -4 -3 -3 -2 -2 -2 -1 -1 -1 ------- Run | Scr Mat Min Mat Min Exi Min Mat Gar Fac Gar Fac Was Fac Low Low Dat Pro Fac Gar Fac Gar Fac Was Fac Gar Res Tes Res Qua Sec Acc Com Ac0 Robot Analysis Total 1 | . . . . . . 1 . . . . . . . . . . . . . . . . . . . . . . . . . . . Derelict Logs Recovered 5 | . . 1 . 1 . . . . . . . . . 1 1 . 1 . . . . . . . . . . . . . . . . Drone Launches . | . . . . . . . . . . . . . . . . . . . . . . . . . . . . . . . . . . Drone Recoveries . | . . . . . . . . . . . . . . . . . . . . . . . . . . . . . . . . . . Exploration | -11 -10 -10 -9 -9 -9 -8 -8 -8 -7 -7 -6 -6 -6 -6 -6 -6 -5 -5 -5 -5 -5 -4 -4 -4 -4 -3 -3 -2 -2 -2 -1 -1 -1 ------------- Run | Scr Mat Min Mat Min Exi Min Mat Gar Fac Gar Fac Was Fac Low Low Dat Pro Fac Gar Fac Gar Fac Was Fac Gar Res Tes Res Qua Sec Acc Com Ac0 Turns Passed 74025 | 112 215 835 1647 1673 345 1278 862 1359 1340 1543 1489 2957 270 1908 721 144 1740 2326 2633 2747 4737 1947 1613 2480 1860 806 2588 633 2859 5327 1093 14284 5654 Spaces Moved 29777 | 48 131 501 683 842 179 619 312 644 623 630 663 277 114 842 348 81 778 1068 332 1109 891 807 722 1057 625 317 948 263 1110 2329 510 7034 2340 Core 139 | . . . . . . . . . . . . 80 . . . . . . . . 48 . . . . . . . . . . . 11 Treads 29534 | 20 55 501 683 842 179 619 312 644 623 630 663 197 114 842 348 81 778 1068 332 1109 843 807 722 1057 625 317 948 263 1110 2329 510 7034 2329 Legs 104 | 28 76 . . . . . . . . . . . . . . . . . . . . . . . . . . . . . . . . Wheels . | . . . . . . . . . . . . . . . . . . . . . . . . . . . . . . . . . . Hover . | . . . . . . . . . . . . . . . . . . . . . . . . . . . . . . . . . . Flight . | . . . . . . . . . . . . . . . . . . . . . . . . . . . . . . . . . . Fastest Speed 50 | 120 120 160 180 180 180 200 180 180 180 200 180 160 180 180 180 180 180 180 180 180 180 180 172 180 180 180 195 195 172 155 155 155 50 Average Speed 188 | 136 150 160 180 180 190 200 181 180 186 200 180 936 180 180 180 180 180 180 180 180 337 180 174 180 180 182 195 195 192 171 159 163 182 Slowest Speed 3100 | 160 180 160 200 180 200 200 200 180 200 200 180 2800 180 180 180 180 180 180 180 180 3100 180 185 180 180 195 195 195 195 195 165 175 220 Overloaded Moves . | . . . . . . . . . . . . . . . . . . . . . . . . . . . . . . . . . . Propulsion Burnouts . | . . . . . . . . . . . . . . . . . . . . . . . . . . . . . . . . . . Robots Hopped . | . . . . . . . . . . . . . . . . . . . . . . . . . . . . . . . . . . Cave-ins Triggered 1 | . . . . . . . . . . . . . . . . . . . . . . 1 . . . . . . . . . . . Teleports 3 | . . . . . . . . . . . . . . . . . . . . . . . . . . . . . . 1 . 1 1 Exploration Rate (%) 56 | 6 22 99 67 96 53 99 20 77 21 71 23 82 2 82 50 69 85 32 46 20 79 29 96 29 72 12 90 11 93 86 19 94 82 Regions Visited 33 Branch Regions 13 Pre-discovered Areas 5 | . . 1 . 1 1 . . . . . . . . . . 1 1 . . . . . . . . . . . . . . . . Known Exits Taken 16 | . . . . . . . 1 . 1 . . . 1 1 1 1 1 1 . 1 . . . 1 . 1 1 1 1 1 1 . . Unknown Exits Taken 8 | 1 1 1 1 1 1 1 . . . . . . . . . . . . . . . . . . . . . . . . . 1 . Scrap Searched 14 | . . 1 . 1 . 2 . . . . . . . 4 2 . 4 . . . . . . . . . . . . . . . . Spaces Dug 628 | . . 11 9 . . . 2 . 18 . 33 . . 33 13 . 17 42 4 43 25 72 . 39 6 12 44 9 32 62 32 21 49 Terrain Destroyed 1657 | . . 19 43 13 . 41 14 120 18 29 54 . . 67 14 . 17 47 5 47 50 105 . 104 11 55 66 10 35 82 115 110 366 Melee 47 | . . . . . . . . . 18 . 29 . . . . . . . . . . . . . . . . . . . . . . Projectile 888 | . . . 4 3 . . 4 . . . . . . 35 14 . 17 47 . 47 . 61 . 47 . 13 53 10 35 71 33 28 366 AOE 722 | . . 19 39 10 . 41 10 120 . 29 25 . . 32 . . . . 5 . 50 44 . 57 11 42 13 . . 11 82 82 . Terrain Rammed . | . . . . . . . . . . . . . . . . . . . . . . . . . . . . . . . . . . Walls Destroyed . | . . . . . . . . . . . . . . . . . . . . . . . . . . . . . . . . . . Machines Disabled . | . . . . . . . . . . . . . . . . . . . . . . . . . . . . . . . . . . Actions | -11 -10 -10 -9 -9 -9 -8 -8 -8 -7 -7 -6 -6 -6 -6 -6 -6 -5 -5 -5 -5 -5 -4 -4 -4 -4 -3 -3 -2 -2 -2 -1 -1 -1 --------- Run | Scr Mat Min Mat Min Exi Min Mat Gar Fac Gar Fac Was Fac Low Low Dat Pro Fac Gar Fac Gar Fac Was Fac Gar Res Tes Res Qua Sec Acc Com Ac0 Total 44959 | 74 151 525 923 925 184 638 478 783 742 856 865 546 178 1150 423 80 1092 1388 2301 1746 2535 1155 937 1472 1295 469 1534 359 1787 3528 742 9729 3369 Wait 9648 | 4 . 7 78 15 . . 57 46 41 109 75 141 48 187 47 . 282 156 1870 420 1426 150 32 219 563 33 303 50 395 481 45 2042 326 Move 29749 | 47 130 500 682 841 178 618 312 643 623 629 663 276 113 841 347 80 777 1068 331 1109 890 806 721 1057 624 316 947 262 1109 2328 509 7033 2339 Hop . | . . . . . . . . . . . . . . . . . . . . . . . . . . . . . . . . . . Pick Up 461 | 2 11 3 16 5 2 2 14 7 8 14 6 12 4 6 1 . 1 25 4 15 32 12 10 11 5 7 22 3 27 63 12 61 38 Fast Attach 367 | 1 2 . 5 1 . 1 1 . . 3 7 9 2 3 2 . 2 11 . 10 9 6 9 4 5 4 22 1 15 45 4 77 106 Attach 269 | . . . 4 4 . . 7 1 3 3 8 6 1 5 . . . 8 . 18 14 10 3 1 2 8 13 4 23 53 4 31 35 Detach 195 | . . . . . . . 1 . 1 2 3 5 . 4 . . . 4 . 18 5 8 3 1 1 6 14 . 19 41 2 28 29 Swap 820 | 4 2 3 18 9 2 1 10 17 20 17 27 14 3 12 5 . 5 14 26 44 29 41 23 59 21 29 55 17 43 95 29 51 75 Drop 713 | 1 6 3 21 6 2 1 9 8 10 19 14 27 6 9 4 . 3 22 4 23 28 13 23 12 8 8 43 4 38 89 12 124 113 Fire 2495 | 8 . 5 91 34 . 12 61 49 12 46 30 56 1 73 17 . 22 76 57 86 92 106 113 106 56 55 114 18 118 328 121 224 308 Melee 77 | . . . . . . . . . 24 . 32 . . . . . . . . . . . . . . . . . . . . 21 . Ram . | . . . . . . . . . . . . . . . . . . . . . . . . . . . . . . . . . . Kick 1 | 1 . . . . . . . . . . . . . . . . . . . . . . . . . . . . . . . . . Crush 63 | 6 . 4 8 10 . 3 6 . . . . . . . . . . 4 1 3 . 2 . 2 . 3 1 . . 5 4 1 . Escape Stasis 91 | . . . . . . . . 12 . 14 . . . . . . . . 8 . 10 1 . . 10 . . . . . . 36 . Rewire 10 | . . . . . . . . . . . . . . 10 . . . . . . . . . . . . . . . . . . . Trap . | . . . . . . . . . . . . . . . . . . . . . . . . . . . . . . . . . . Miscellaneous . | . . . . . . . . . . . . . . . . . . . . . . . . . . . . . . . . . . Route ------- -11/Scrapyard -10/Materials -10/Mines (discovered 2 exits: *Mat x2) -9/Materials (discovered 3 exits: *Mat x2 / [*Min]) -9/Mines (discovered 4 exits: *Mat x2 / *Exi / [*Zio]) -9/Exiles -8/Mines (discovered 2 exits: *Mat x2) -8/Materials -8/Garrison (discovered 2 exits: *Fac x2) -7/Factory (discovered 3 exits: Sto / [*Low] / Gar) -7/Garrison (discovered 3 exits: *Fac x3) -6/Factory (discovered 3 exits: *Fac / Low x2) -6/Waste -6/Factory -6/Lower Caves -6/Lower Caves -6/Data Miner -5/Proximity Caves -5/Factory (discovered 5 exits: *Fac x2 / *Upp x2 / Gar) -5/Garrison -5/Factory -5/Garrison (discovered 3 exits: *Fac x3) -4/Factory (discovered 5 exits: Res / Upp x2 / Ext x2) -4/Waste -4/Factory (discovered 5 exits: *Res x2 / *Upp / Ext / Gar) -4/Garrison (discovered 3 exits: *Res x3) -3/Research (discovered 3 exits: Arm / *Tes x2) -3/Testing -2/Research (discovered 2 exits: *Qua x2) -2/Quarantine (discovered 2 exits: *Acc / *Sec) -2/Section 7 -1/Access -1/Command (discovered 3 exits: [*Sur x2] / *Ac0) -1/Access_0 Near Former Tau Ceti IV History --------- Turn | Location | Event 1 | -11/Scrapyard | Discovered new exit (range 3) 113 | -11/Scrapyard | Entered Materials 306 | -10/Materials | Discovered new exit (range 14) 319 | -10/Materials | Build established: Mutant 328 | -10/Materials | Entered Mines 335 | -10/Mines | Met a Derelict bent on vengeance 491 | -10/Mines | Learned location of Zion (-7) 645 | -10/Mines | Discovered new exit (range 9) 792 | -10/Mines | A weapon hastily lodged in a ceiling crevice suddenly fell to the ground 882 | -10/Mines | Found a hidden stash of uninstalled traps 898 | -10/Mines | Discovered new exit (range 9) 1163 | -10/Mines | Entered Materials 1163 | -9/Materials | Evolved 2 slots: Utility x2 1230 | -9/Materials | Central database locked down 1647 | -9/Materials | Repaired Imp. Ion Engine 1776 | -9/Materials | Discovered new exit (range 10) 2208 | -9/Materials | Discovered new exit (range 4) 2377 | -9/Materials | Discovered new exit (range 16) 2810 | -9/Materials | Entered Mines 2930 | -9/Mines | Joined a pair of Derelicts in attacking an 0b10 outpost 3131 | -9/Mines | Learned location of Storage (-7) 3132 | -9/Mines | Discovered new exit (range 6) 3354 | -9/Mines | Discovered new exit (range 5) 3571 | -9/Mines | Destroyed YI-UF0 3601 | -9/Mines | Lost 4 parts (1n1u2w) 3624 | -9/Mines | A Derelict revealed a hidden shortcut to a safe place 3796 | -9/Mines | Deemed a non-threat by the Exiles lab entrance 4476 | -9/Mines | Discovered new exit (range 5) 4483 | -9/Mines | Entered Exiles 4528 | -9/Exiles | Met 8R-AWN 4555 | -9/Exiles | Met EX-HEX 4681 | -9/Exiles | Met EX-DEC 4810 | -9/Exiles | Discovered new exit (range 11) 4828 | -9/Exiles | Entered Mines 4930 | -8/Mines | Build established: Hauler-Mutant 5168 | -8/Mines | Discovered new exit (range 6) 5640 | -8/Mines | Discovered new exit (range 8) 6106 | -8/Mines | Entered Materials 6106 | -8/Materials | Evolved 2 slots: Propulsion x1, Utility x1 6850 | -8/Materials | Garrison activated, responded to threat 6968 | -8/Materials | Identified exit to Garrison 6968 | -8/Materials | Entered Garrison 6999 | -8/Garrison | Triggered checkpoint 7054 | -8/Garrison | Destroyed 7 combat bots 7145 | -8/Garrison | Triggered checkpoint 7280 | -8/Garrison | Triggered checkpoint 7293 | -8/Garrison | Discovered new exit (range 15) 7382 | -8/Garrison | Triggered checkpoint 7472 | -8/Garrison | Discovered new exit (range 11) 7504 | -8/Garrison | Installed Relay Interface Framework 7568 | -8/Garrison | Triggered checkpoint 7641 | -8/Garrison | Garrison Relay disabled 8039 | -8/Garrison | Phase Generator disabled 8101 | -8/Garrison | Garrison Relay disabled 8327 | -8/Garrison | Entered Factory 8327 | -7/Factory | Evolved 2 slots: Utility x2 8328 | -7/Factory | Identified exit to Storage 8406 | -7/Factory | Build established: Bothacker-Mutant 8990 | -7/Factory | Build established: Scavenger-Mutant 9366 | -7/Factory | Discovered new exit (range 16) 9391 | -7/Factory | Garrison activated, responded to threat 9637 | -7/Factory | Fabricated Lrn. Sensor Array (x1) 9667 | -7/Factory | Identified exit to Garrison 9667 | -7/Factory | Entered Garrison 9736 | -7/Garrison | Triggered checkpoint 10050 | -7/Garrison | Destroyed 7 combat bots 10147 | -7/Garrison | Discovered new exit (range 14) 10343 | -7/Garrison | Discovered new exit (range 15) 10434 | -7/Garrison | Triggered checkpoint 10558 | -7/Garrison | Discovered new exit (range 15) 10650 | -7/Garrison | Identified exit to Factory 10662 | -7/Garrison | Expanded RIF knowledge: Hotswap 10906 | -7/Garrison | Triggered checkpoint 11010 | -7/Garrison | Garrison Relay disabled 11210 | -7/Garrison | Entered Factory 11210 | -6/Factory | Evolved 2 slots: Propulsion x1, Utility x1 11635 | -6/Factory | Build established: Bothacker-Mutant 12136 | -6/Factory | Identified exit to Lower Caves 12695 | -6/Factory | Discovered new exit (range 5) 12699 | -6/Factory | Sucked down chute 12699 | -6/Factory | Entered Waste 12714 | -6/Waste | EMP discharged 12714 | -6/Waste | System corruption reached 10% 12714 | -6/Waste | Spotted C-40 Crusher 12718 | -6/Waste | Destroyed C-40 Crusher 12729 | -6/Waste | Spotted C-40 Crusher 12740 | -6/Waste | Spotted C-40 Crusher 12748 | -6/Waste | Spotted C-40 Crusher 12780 | -6/Waste | Destroyed C-40 Crusher 12795 | -6/Waste | Found Damper Plating 12797 | -6/Waste | Spotted C-40 Crusher 12812 | -6/Waste | Spotted C-40 Crusher 12814 | -6/Waste | EMP discharged 12851 | -6/Waste | Crushed by Compactor (1 part destroyed, 1 dropped) 12914 | -6/Waste | EMP discharged 13014 | -6/Waste | EMP discharged 13108 | -6/Waste | Destroyed C-40 Crusher 13114 | -6/Waste | EMP discharged 13140 | -6/Waste | Destroyed C-40 Crusher 13154 | -6/Waste | Found Damper Plating 13205 | -6/Waste | Destroyed C-40 Crusher 13214 | -6/Waste | EMP discharged 13314 | -6/Waste | EMP discharged 13331 | -6/Waste | Destroyed C-40 Crusher 13358 | -6/Waste | Found Damper Plating 13396 | -6/Waste | Discovered new exit (range 11) 13414 | -6/Waste | EMP discharged 13514 | -6/Waste | EMP discharged 13614 | -6/Waste | EMP discharged 13714 | -6/Waste | Build established: Hauler-Mutant 13714 | -6/Waste | EMP discharged 13814 | -6/Waste | EMP discharged 13914 | -6/Waste | EMP discharged 14014 | -6/Waste | EMP discharged 14114 | -6/Waste | EMP discharged 14214 | -6/Waste | EMP discharged 14314 | -6/Waste | EMP discharged 14414 | -6/Waste | EMP discharged 14514 | -6/Waste | EMP discharged 14614 | -6/Waste | EMP discharged 14714 | -6/Waste | EMP discharged 14814 | -6/Waste | EMP discharged 14914 | -6/Waste | EMP discharged 15014 | -6/Waste | EMP discharged 15114 | -6/Waste | EMP discharged 15214 | -6/Waste | EMP discharged 15314 | -6/Waste | EMP discharged 15414 | -6/Waste | EMP discharged 15514 | -6/Waste | EMP discharged 15614 | -6/Waste | EMP discharged 15653 | -6/Waste | Identified exit to Factory 15656 | -6/Waste | Entered Factory 15686 | -6/Factory | Discovered exit to Lower Caves (range 6) 15699 | -6/Factory | Found Prototype Launcher 15699 | -6/Factory | Identified Rocket Array 15883 | -6/Factory | Fabricated Lrn. Terrain Scanner (x1) 15926 | -6/Factory | Entered Lower Caves 16040 | -6/Lower Caves | Attracted the attention of an 0b10 outpost 16082 | -6/Lower Caves | Destroyed 7 combat bots 17588 | -6/Lower Caves | Learned 4 Factory zone layouts 17819 | -6/Lower Caves | Discovered new exit (range 5) 17832 | -6/Lower Caves | Identified exit to Lower Caves 17834 | -6/Lower Caves | Entered another Lower Caves area 17836 | -6/Lower Caves | Attracted the attention of an 0b10 checkpoint 18159 | -6/Lower Caves | Learned 8 Factory zone layouts 18309 | -6/Lower Caves | Encountered a Warlord checkpoint 18488 | -6/Lower Caves | Discovered new exit (range 7) 18497 | -6/Lower Caves | Identified exit to Data Miner 18555 | -6/Lower Caves | Entered Data Miner 18555 | -6/Data Miner | Discovered new exit (range 6) 18590 | -6/Data Miner | Met Data Miner 18626 | -6/Data Miner | Learned location of Section 7 (-2) 18626 | -6/Data Miner | Acquired the access code to Warlord's prototype stash 18649 | -6/Data Miner | Received God Mode back door access code from Data Miner 18698 | -6/Data Miner | Identified exit to Proximity Caves 18699 | -6/Data Miner | Entered Proximity Caves 19936 | -5/Proximity Caves | Escorted by Enhanced Grunt 20008 | -5/Proximity Caves | Attracted the attention of an 0b10 checkpoint 20227 | -5/Proximity Caves | Discovered new exit (range 7) 20435 | -5/Proximity Caves | Identified exit to Factory 20439 | -5/Proximity Caves | Entered Factory 20439 | -5/Factory | Accompanied by 1 ally 20439 | -5/Factory | Evolved 2 slots: Utility x2 20440 | -5/Factory | Identified exit to Upper Caves 20440 | -5/Factory | Identified exit to Factory 20710 | -5/Factory | Repaired Lrn. Sensor Array? 22699 | -5/Factory | Fabricated Exp. Terrain Scanner? 22752 | -5/Factory | Spotted B-75 Beast 22765 | -5/Factory | Identified exit to Garrison 22765 | -5/Factory | Entered Garrison 22774 | -5/Garrison | Expanded RIF knowledge: Alert ID Control 23219 | -5/Garrison | Triggered checkpoint 23263 | -5/Garrison | Spotted B-75 Beast 23306 | -5/Garrison | Triggered checkpoint 23356 | -5/Garrison | Garrison Relay disabled 23665 | -5/Garrison | Destroyed 7 combat bots 24828 | -5/Garrison | Triggered checkpoint 24831 | -5/Garrison | Destroyed B-75 Beast 24990 | -5/Garrison | Discovered new exit (range 10) 25005 | -5/Garrison | Identified exit to Factory 25251 | -5/Garrison | Triggered checkpoint 25321 | -5/Garrison | Garrison Relay disabled 25398 | -5/Garrison | Entered Factory 26859 | -5/Factory | Fabricated Adv. Weapon Cycler? 26952 | -5/Factory | Incoming investigation squad redirected 28145 | -5/Factory | Identified exit to Garrison 28145 | -5/Factory | Entered Garrison 28803 | -5/Garrison | Triggered checkpoint 28830 | -5/Garrison | Spotted B-75 Beast 28922 | -5/Garrison | Destroyed B-75 Beast 28977 | -5/Garrison | Triggered checkpoint 29228 | -5/Garrison | Discovered exit to Factory (range 14) 29268 | -5/Garrison | Expanded RIF knowledge: Autoassimilate 31172 | -5/Garrison | Discovered exit to Factory (range 14) 31434 | -5/Garrison | Triggered checkpoint 31473 | -5/Garrison | Garrison Relay disabled 31805 | -5/Garrison | Build established: Bothacker-Mutant 31964 | -5/Garrison | Discovered exit to Factory (range 11) 32464 | -5/Garrison | Spotted B-75 Beast 32494 | -5/Garrison | Destroyed B-75 Beast 32580 | -5/Garrison | Garrison Relay disabled 32636 | -5/Garrison | Triggered checkpoint 32694 | -5/Garrison | Garrison Relay disabled 32882 | -5/Garrison | Entered Factory 32882 | -4/Factory | Evolved 2 slots: Power x1, Utility x1 33132 | -4/Factory | First assault squad dispatched 33162 | -4/Factory | Incoming assault squad redirected 33351 | -4/Factory | Crushed by falling debris 33395 | -4/Factory | Discovered new exit (range 20) 33440 | -4/Factory | Identified exit to Upper Caves 33440 | -4/Factory | Identified exit to Extension 33560 | -4/Factory | Found Quantum Capacitor 33843 | -4/Factory | Discovered new exit (range 28) 34829 | -4/Factory | Sucked down chute 34829 | -4/Factory | Entered Waste 34850 | -4/Waste | Spotted C-40 Crusher 34874 | -4/Waste | Spotted C-40 Crusher 34878 | -4/Waste | Found Prototype Device 34879 | -4/Waste | Identified Exp. Actuator Array 34882 | -4/Waste | Spotted C-40 Crusher 34897 | -4/Waste | Spotted C-40 Crusher 34921 | -4/Waste | Spotted C-40 Crusher 34929 | -4/Waste | Spotted C-40 Crusher 34948 | -4/Waste | Discovered new exit (range 11) 35029 | -4/Waste | Build established: Hauler-Mutant 35113 | -4/Waste | Destroyed C-40 Crusher 35273 | -4/Waste | Warlord forces began an assault 35836 | -4/Waste | Destroyed C-40 Crusher 35873 | -4/Waste | Found Damper Plating 35879 | -4/Waste | Found Damper Plating 35968 | -4/Waste | Destroyed C-40 Crusher 35988 | -4/Waste | Found Damper Plating 36011 | -4/Waste | Destroyed C-40 Crusher 36037 | -4/Waste | Found Damper Plating 36440 | -4/Waste | Identified exit to Factory 36442 | -4/Waste | Entered Factory 36672 | -4/Factory | Repaired Biometal Heavy Treads 36712 | -4/Factory | Discovered exit to Upper Caves (range 27) 36772 | -4/Factory | Discovered new exit (range 29) 37210 | -4/Factory | Incoming investigation squad redirected 37456 | -4/Factory | Discovered exit to Extension (range 9) 37529 | -4/Factory | Discovered new exit (range 20) 37719 | -4/Factory | Identified exit to Research 38507 | -4/Factory | Garrison activated, responded to threat 38922 | -4/Factory | Identified exit to Garrison 38922 | -4/Factory | Entered Garrison 39037 | -4/Garrison | Triggered checkpoint 39075 | -4/Garrison | Spotted B-86 Titan 39144 | -4/Garrison | Destroyed B-86 Titan 39282 | -4/Garrison | Triggered checkpoint 39329 | -4/Garrison | Discovered exit to Research (range 24) 39458 | -4/Garrison | Expanded RIF knowledge: Robot Detection 39531 | -4/Garrison | Triggered checkpoint 39872 | -4/Garrison | Triggered checkpoint 39912 | -4/Garrison | Garrison Relay disabled 39994 | -4/Garrison | Triggered checkpoint 40097 | -4/Garrison | Triggered checkpoint 40155 | -4/Garrison | Garrison Relay disabled 40211 | -4/Garrison | Build established: Bothacker-Mutant 40295 | -4/Garrison | Discovered exit to Research (range 15) 40411 | -4/Garrison | Discovered exit to Research (range 30) 40647 | -4/Garrison | Found Hvy. Reflective Plating 40782 | -4/Garrison | Entered Research 40782 | -3/Research | Evolved 2 slots: Utility x2 40807 | -3/Research | Found Hvy. Reflective Plating 40969 | -3/Research | Identified exit to Armory 40969 | -3/Research | Identified exit to Testing 40993 | -3/Research | Found Prototype Processor 41467 | -3/Research | Identified Spectral Analyzer 41532 | -3/Research | First assault squad dispatched 41588 | -3/Research | Entered Testing 41617 | -3/Testing | Found Prototype Energy Cannon 41617 | -3/Testing | Identified Cld. Nova Cannon 41867 | -3/Testing | Found Unknown Launcher 41867 | -3/Testing | Identified Gamma Bomb Array 42128 | -3/Testing | Build established: Hauler-Mutant 42222 | -3/Testing | Found Prototype Device 42222 | -3/Testing | Identified AEGIS Remote Shield 42247 | -3/Testing | Spotted PY-I0Z41KU2KQ 42277 | -3/Testing | Found Adv. Micro-nuke Launcher 42399 | -3/Testing | Repaired Exp. Terrain Scanner 42947 | -3/Testing | Discovered new exit (range 30) 43096 | -3/Testing | Found Prototype Protection 43096 | -3/Testing | Identified SHELL Armor 43341 | -3/Testing | Found Prototype Device 43341 | -3/Testing | Identified Exp. Hardlight Generator 43820 | -3/Testing | Found Prototype Hackware 43857 | -3/Testing | Found Prototype Energy Cannon 43857 | -3/Testing | Identified Null Cannon 44174 | -3/Testing | Identified exit to Research 44176 | -3/Testing | Entered Research 44176 | -2/Research | Evolved 2 slots: Utility x2 44246 | -2/Research | Identified System Mapper 44275 | -2/Research | Identified exit to Quarantine 44293 | -2/Research | Incoming investigation squad redirected 44809 | -2/Research | Entered Quarantine 44835 | -2/Quarantine | Found Alien Artifact 44844 | -2/Quarantine | Found Alien Artifact 44855 | -2/Quarantine | Found Alien Artifact 44951 | -2/Quarantine | Discovered new exit (range 25) 44984 | -2/Quarantine | Found Alien Launcher 44984 | -2/Quarantine | Identified Sigix Terminator 45158 | -2/Quarantine | Identified Dimensional Node Initializer 45158 | -2/Quarantine | Initialized slip node 45165 | -2/Quarantine | Cryocooling Duct disabled 45180 | -2/Quarantine | Ambient heat levels rising (+20) 45180 | -2/Quarantine | Non-combat units ordered to evacuate 45720 | -2/Quarantine | Identified Transdimensional Reconstructor 46646 | -2/Quarantine | Found Alien Artifact 46646 | -2/Quarantine | Identified Subatomic Replicator 46865 | -2/Quarantine | Found Dimensional Node Initializer 46882 | -2/Quarantine | Found Transdimensional Reconstructor 47176 | -2/Quarantine | Found Alien Artifact 47540 | -2/Quarantine | Spotted Fortress 47661 | -2/Quarantine | Discovered new exit (range 5) 47666 | -2/Quarantine | Identified exit to Section 7 47668 | -2/Quarantine | Entered Section 7 47833 | -2/Section 7 | Spotted S7 Guard 47854 | -2/Section 7 | Destroyed S7 Guard 47871 | -2/Section 7 | Found Prototype Protection 47886 | -2/Section 7 | Found Alien Artifact 47905 | -2/Section 7 | Identified Hvy. Regenerative Plating 48101 | -2/Section 7 | Identified Core Membrane 48101 | -2/Section 7 | Identified Core Reset Matrix 48101 | -2/Section 7 | Installed Core Membrane, gained immunity to corruption 48172 | -2/Section 7 | Found Alien Artifact 48357 | -2/Section 7 | Found Alien Artifact 49149 | -2/Section 7 | Repaired Hvy. Siege Treads 49362 | -2/Section 7 | Discovered new exit (range 15) 49431 | -2/Section 7 | Identified Integrated Dissipator 49431 | -2/Section 7 | Identified Integrated Reactor 49445 | -2/Section 7 | Installed Integrated Dissipator, increased core heat dissipation (+20) 49545 | -2/Section 7 | Initialized slip node 49635 | -2/Section 7 | Spotted S7 Guard 49664 | -2/Section 7 | Destroyed S7 Guard 49720 | -2/Section 7 | Found Alien Artifact 49916 | -2/Section 7 | Identified Core Regenerator 49993 | -2/Section 7 | Spotted S7 Guard 50377 | -2/Section 7 | Found Alien Artifact 50460 | -2/Section 7 | Found Integrated Dissipator 50460 | -2/Section 7 | Installed Integrated Dissipator, increased core heat dissipation (+20) 50936 | -2/Section 7 | Spotted S7 Guard 51096 | -2/Section 7 | Installed Integrated Reactor, increased core energy generation (+10) 51102 | -2/Section 7 | Found Alien Artifact 51108 | -2/Section 7 | Destroyed S7 Guard 51450 | -2/Section 7 | Spotted B-90 Cyclops 51541 | -2/Section 7 | Destroyed B-90 Cyclops 51723 | -2/Section 7 | Spotted Executioner 51724 | -2/Section 7 | Spotted Executioner 51728 | -2/Section 7 | Destroyed Executioner 51731 | -2/Section 7 | Destroyed Executioner 51748 | -2/Section 7 | Found Prototype Device 51748 | -2/Section 7 | Identified Adv. Kinecellerator 51884 | -2/Section 7 | Found Alien Artifact 52032 | -2/Section 7 | Found Alien Energy Gun 52032 | -2/Section 7 | Identified Sigix Quantum Sheargun 52090 | -2/Section 7 | Spotted Striker 52090 | -2/Section 7 | Spotted Striker 52315 | -2/Section 7 | Found Alien Artifact 52315 | -2/Section 7 | Identified LRC Insulator 52315 | -2/Section 7 | Installed LRC Insulator, gained EM resistance (25) 52324 | -2/Section 7 | Found Alien Artifact 52324 | -2/Section 7 | Identified LRC Boosters 52324 | -2/Section 7 | Installed LRC Boosters, increased mass support (+10) 52385 | -2/Section 7 | Found Integrated Dissipator 52385 | -2/Section 7 | Installed Integrated Dissipator, increased core heat dissipation (+20) 52856 | -2/Section 7 | Found Sigix Quantum Sheargun 52861 | -2/Section 7 | Found Sigix Quantum Sheargun 52918 | -2/Section 7 | First assault squad dispatched 52981 | -2/Section 7 | Warped through subspace to slip node 52984 | -2/Section 7 | Found Transdimensional Reconstructor 52994 | -2/Section 7 | Identified exit to Access 52995 | -2/Section 7 | Entered Access 52995 | -1/Access | Evolved 2 slots: Weapon x2 53081 | -1/Access | Incoming investigation squad redirected 53210 | -1/Access | Identified exit to Command 53700 | -1/Access | Destroyed 12 combat bots 53788 | -1/Access | Destroyed 9 combat bots 53970 | -1/Access | Identified Integrated Heat Negator 53995 | -1/Access | First assault squad dispatched 54025 | -1/Access | Incoming assault squad redirected 54088 | -1/Access | Entered Command 54988 | -1/Command | Discovered new exit (range 26) 55236 | -1/Command | Spotted M Guard 55237 | -1/Command | Spotted M Guard 55244 | -1/Command | Destroyed M Guard 55254 | -1/Command | Destroyed M Guard 55256 | -1/Command | Spotted Combat Programmer 55259 | -1/Command | Spotted Combat Programmer 55268 | -1/Command | Destroyed Combat Programmer 55274 | -1/Command | Destroyed Combat Programmer 55274 | -1/Command | All MAIN.C guards destroyed 55313 | -1/Command | Found Prototype Reactor 55313 | -1/Command | Identified Zero-point Reactor 55318 | -1/Command | Found AEGIS Remote Shield 55325 | -1/Command | Found Zero-point Reactor 55488 | -1/Command | Installed Integrated Heat Negator, increased core heat dissipation (+40) 55518 | -1/Command | Met MAIN.C 55530 | -1/Command | 0b10 Conduit disabled 55542 | -1/Command | Destroyed MAIN.C Shell 55543 | -1/Command | MAIN.C activated Command garrisons 55607 | -1/Command | Destroyed MAIN.C 55872 | -1/Command | Build established: Scavenger-Mutant 55895 | -1/Command | Spotted B-99 Colossus 56176 | -1/Command | Build established: Scavenger-Gunner 56523 | -1/Command | Build established: Scavenger-Mutant 57549 | -1/Command | Found Prototype Protection 57549 | -1/Command | Identified Exp. Powered Armor 57746 | -1/Command | Found Zero-point Reactor 57756 | -1/Command | Found Prototype Reactor 57756 | -1/Command | Identified Vortex Chain Reactor 57774 | -1/Command | Found Prototype Device 57774 | -1/Command | Identified Exp. Force Field 57788 | -1/Command | Found Prototype Protection 57788 | -1/Command | Identified Centrium Heavy Armor Plating 57792 | -1/Command | Found Prototype Processor 57792 | -1/Command | Identified Exp. Target Analyzer 58011 | -1/Command | Build established: Hauler-Mutant 58097 | -1/Command | Found Gamma Bomb Array 58316 | -1/Command | Found Exp. Force Field 58319 | -1/Command | Found Exp. Force Field 58379 | -1/Command | Destroyed B-99 Colossus 58407 | -1/Command | Found Prototype Ballistic Gun 58407 | -1/Command | Identified Multirail 58677 | -1/Command | Discovered new exit (range 30) 59210 | -1/Command | Spotted Alpha 7 59314 | -1/Command | Found Multirail 59479 | -1/Command | Destroyed Alpha 7 61030 | -1/Command | Phase Generator disabled 62107 | -1/Command | Found Prototype Ballistic Cannon 62107 | -1/Command | Identified Omega Cannon 62398 | -1/Command | Build established: Hauler-Gunner 63078 | -1/Command | Build established: Hauler-Mutant 63088 | -1/Command | Used Core Reset Matrix 63092 | -1/Command | Sensed 5 artifacts in vicinity 63381 | -1/Command | Used Subatomic Replicator to replicate Integrated Singularity Reactor 63382 | -1/Command | Installed Integrated Singularity Reactor, increased core energy generation (+20) 63385 | -1/Command | Installed Integrated Singularity Reactor, increased core energy generation (+20) 63406 | -1/Command | Build established: Alien-Mutant 63593 | -1/Command | Used Core Regenerator, restored core integrity (+278) 63637 | -1/Command | Found Omega Cannon 64888 | -1/Command | Discovered new exit (range 16) 65090 | -1/Command | Found Prototype Processor 65090 | -1/Command | Identified Exp. Core Analyzer 65805 | -1/Command | Found Prototype Device 65805 | -1/Command | Identified Adv. Kinecellerator 66663 | -1/Command | Discovered new exit (range 30) 66705 | -1/Command | Build established: Alien-Gunner 67130 | -1/Command | Found Prototype Processor 67130 | -1/Command | Identified Exp. Targeting Computer 67456 | -1/Command | Found Exp. Targeting Computer 68024 | -1/Command | Build established: Alien-Mutant 68364 | -1/Command | Warped through subspace to slip node 68364 | -1/Command | Discovered new exit (range 5) 68372 | -1/Command | Entered Access_0 68373 | -1/Access_0 | Sensed 3 artifacts in vicinity 68373 | -1/Access_0 | Met Architect 68401 | -1/Access_0 | Destroyed A8 68423 | -1/Access_0 | Architect warped through subspace 68485 | -1/Access_0 | Architect warped through subspace 68528 | -1/Access_0 | Subspace Access Node disabled 68538 | -1/Access_0 | Architect warped through subspace 68568 | -1/Access_0 | Found Prototype Device 68590 | -1/Access_0 | Identified Exp. Weapon Cycler 68602 | -1/Access_0 | Architect warped through subspace 68661 | -1/Access_0 | Architect warped through subspace 68675 | -1/Access_0 | Found Exp. Powered Armor 68694 | -1/Access_0 | A6 warped into view 68696 | -1/Access_0 | Architect warped through subspace 68711 | -1/Access_0 | Destroyed A6 68734 | -1/Access_0 | Architect warped through subspace 68778 | -1/Access_0 | Found Prototype Device 68778 | -1/Access_0 | Identified Desublimator 68791 | -1/Access_0 | Architect warped through subspace 68826 | -1/Access_0 | Architect warped through subspace 68859 | -1/Access_0 | Architect warped through subspace 68890 | -1/Access_0 | Architect warped through subspace 68903 | -1/Access_0 | Subspace Access Node disabled 68919 | -1/Access_0 | Architect warped through subspace 68952 | -1/Access_0 | Architect warped through subspace 68976 | -1/Access_0 | Architect warped through subspace 68997 | -1/Access_0 | Architect warped through subspace 69000 | -1/Access_0 | Lost 3 parts (1n1u1w) 69006 | -1/Access_0 | Found Desublimator 69018 | -1/Access_0 | Architect warped through subspace 69045 | -1/Access_0 | Architect warped through subspace 69078 | -1/Access_0 | Architect warped through subspace 69091 | -1/Access_0 | Subspace Access Node disabled 69105 | -1/Access_0 | Architect warped through subspace 69136 | -1/Access_0 | Architect warped through subspace 69154 | -1/Access_0 | Architect warped through subspace 69177 | -1/Access_0 | Architect warped through subspace 69201 | -1/Access_0 | Subspace Access Node disabled 69323 | -1/Access_0 | Found Exp. Weapon Cycler 69353 | -1/Access_0 | Found Desublimator 69635 | -1/Access_0 | Found Adv. Kinecellerator 69642 | -1/Access_0 | Found Adv. Kinecellerator 69656 | -1/Access_0 | Found Prototype Processor 69656 | -1/Access_0 | Identified Exp. Terrain Scan Processor 69671 | -1/Access_0 | Found Prototype Processor 69671 | -1/Access_0 | Identified Spectral Analyzer 69728 | -1/Access_0 | Build established: Alien-Skirmisher 69849 | -1/Access_0 | A5 warped into view 69882 | -1/Access_0 | Destroyed A5 69908 | -1/Access_0 | Found Prototype Protection 69908 | -1/Access_0 | Identified Med. Regenerative Plating 69922 | -1/Access_0 | Found Prototype Hackware 69922 | -1/Access_0 | Identified Exp. Hacking Suite 70113 | -1/Access_0 | Found Prototype Launcher 70113 | -1/Access_0 | Identified Point Singularity Launcher 70160 | -1/Access_0 | Found Prototype Device 70160 | -1/Access_0 | Identified Exp. Cloaking Device 70273 | -1/Access_0 | Found Prototype Device 70273 | -1/Access_0 | Identified Exp. Thermal Shield 70359 | -1/Access_0 | Found Prototype Device 70359 | -1/Access_0 | Identified Exp. Actuator Array 70589 | -1/Access_0 | Build established: Alien-Gunner 70860 | -1/Access_0 | A4 warped into view 70878 | -1/Access_0 | Destroyed A4 70897 | -1/Access_0 | Found Unknown Device 70897 | -1/Access_0 | Identified Antimissile System 70907 | -1/Access_0 | Found Prototype Hackware 70907 | -1/Access_0 | Identified Ghost Barrier 71056 | -1/Access_0 | Found Prototype Launcher 71056 | -1/Access_0 | Identified Com. Tesla Bomb Launcher 71062 | -1/Access_0 | Found Adv. Micro-nuke Launcher 71072 | -1/Access_0 | Found Prototype Device 71072 | -1/Access_0 | Identified Exp. Thermal Defense Suite 71077 | -1/Access_0 | Found Exp. Force Field 71272 | -1/Access_0 | Found Exp. Powered Armor 71274 | -1/Access_0 | Build established: Alien-Skirmisher 71726 | -1/Access_0 | Found Integrated Reactor 71726 | -1/Access_0 | Installed Integrated Reactor, increased core energy generation (+10) 71837 | -1/Access_0 | Destroyed A2 71854 | -1/Access_0 | Extracted Singularity Gate Test 138-C access codes from A2's data core 71873 | -1/Access_0 | Found Prototype Hackware 71873 | -1/Access_0 | Identified Deep Network Scanner 71879 | -1/Access_0 | Found Prototype Hackware 71879 | -1/Access_0 | Identified Quantum Router 71883 | -1/Access_0 | Found Deep Network Scanner 71890 | -1/Access_0 | Found Prototype Device 71890 | -1/Access_0 | Identified Exp. Phase Shifter 72224 | -1/Access_0 | Found Hpw. Transdimensional Reconstructor 72348 | -1/Access_0 | A3 warped into view 72372 | -1/Access_0 | Destroyed A3 72425 | -1/Access_0 | Started Test 138-B, establishing a local singularity 72462 | -1/Access_0 | Started Test 138-B, establishing a local singularity 72833 | -1/Access_0 | Found Sigix Corpse 73895 | -1/Access_0 | Build established: Alien-Mutant 74015 | -1/Access_0 | Destroyed Architect 74016 | -1/Access_0 | Architect triggered a singularity event 74018 | -1/Access_0 | Warped through subspace to slip node 74018 | -1/Access_0 | Discovered new exit (range 8) 74019 | -1/Access_0 | Core integrity fell below 50% 74019 | -1/Access_0 | Released all parts (19) 74026 | *** | Escaped singularity! Last Messages --------------- 74019_ Hvy. Regenerative Plating crushed and broken. 74019_ Released SHELL Armor. 74019_ SHELL Armor crushed and broken. 74019_ Released Adv. Heavy Siege Treads. 74019_ Adv. Heavy Siege Treads crushed and broken. 74019_ Released Desublimator. 74019_ Desublimator crushed and broken. 74019_ Released Adv. Kinecellerator. 74019_ Adv. Kinecellerator crushed and broken. 74019_ Dropped Omega Cannon. 74019_ Omega Cannon crushed and broken. 74020_ A0_COM: 7. 74021_ A0_COM: 6. 74021_ Acquired Sigix Corpse. 74022_ A0_COM: 5. 74023_ A0_COM: 4. 74024_ A0_COM: 3. 74025_ A0_COM: 2. 74026_ A0_COM: 1. [Achievement: I Was Wrong!] Map ----- +----------------------------------------------------+ | | | | | | | | | | | | | | | | | | | | | | | | | | | | | | | | | ?????????????????????????????????????????????????? | | ?????????????????????????????????????????????????? | | ?????????????????????????????????????????????????? | | ?????????????????????????????????????????????????? | | ?????????????????????????????????????????????????? | | ?????????????????????????????????????????????????? | | ????????????????????????###??????????????????????? | | ???????????????????????## ##?????????????????????? | | ???????????????????????# #?????????????????????? | | ???????????????????????# @ #?????????????????????? | | ??????????????????????## #?????????????????????? | | ??????????????????????# ** #?????????????????????? | | ??????????????????????#]!!##?????????????????????? | | ??????????????????????##!!]#?????????????????????? | | ??????????????????????#!]!!#?????????????????????? | | ??????????????????????#![=##?????????????????????? | | ??????????????????????#*![!#?????????????????????? | | ??????????????????????#[[*##?????????????????????? | | ??????????????????????## ]#??????????????????????? | | ???????????????????????####??????????????????????? | | ?????????????????????????????????????????????????? | | ?????????????????????????????????????????????????? | | ?????????????????????????????????????????????????? | | ?#?#?????????????????????????????????????????????? | | ######?###?#?????????????????????????????????????? | | #######?#######?#????????????????????????????????? | | ##############?#?#???????????????????????????????? | | ##############??####?????????????????????????????? | | ##################???????????????????????????????? | | #####################?##?????????????????????????? | | ###########?##############???????????????????????? | | ########################?#???????????????????????? | | #####################?####?#?????????????????????? | | ####################?########????????????????????? | +----------------------------------------------------+ Best States ------------- Heat Dissipation 252 Energy Generation 121 Energy Capacity 1700 Matter Stores 800 Matter Capacity 800 Sight Range 24 Robot Scan Range 20 Terrain Scan Range 30 Terrain Scan Density 1010 Jamming Range 16 Additional Mass Support 12 Armor Coverage 3800 Resistance: TH 25 Resistance: EM 90 Utility Shielding 66 Weapon Shielding 66 Weapon Cycling 30 Evasion (%) 40 Targeting Accuracy 12 Melee Accuracy 8 Target Analysis 12 Armor Integrity Analysis 66 Recoil Reduction 4 Matter Filtering 50 Particle Charging 25 Kinecelleration 50 Overload Regulation 80 Offensive Hacking 34 Defensive Hacking 25 Relay Coupler Types 38 Relay Coupler Value 1 Item Schematics ----------------- None Robot Schematics ------------------ None Fabricated ------------ Lrn. Sensor Array | x1 | -7/Factory Lrn. Terrain Scanner | x1 | -6/Factory Exp. Terrain Scanner | x1 | -5/Factory Adv. Weapon Cycler | x2 | -5/Factory Alien Tech Used ----------------- Sigix Terminator Dimensional Node Initializer Subatomic Replicator Core Membrane Integrated Dissipator Integrated Reactor Sigix Quantum Sheargun LRC Insulator LRC Boosters Transdimensional Reconstructor Integrated Heat Negator Core Reset Matrix Integrated Singularity Reactor Core Regenerator High-powered Transdimensional Reconstructor Achievements -------------- I Was Wrong! Challenges ------------ None Game ------ Seed ManeuveringMassCorpse Manual? 0 Play Time 11:18:48 Cumulative 301.3 hours Start 2021.01.11 @ 21:29:34 End 2021.01.13 @ 13:58:39 Sessions 3 Manual Loads 0 Difficulty Rogue Special Mode None Game No. 146 Rogue 146 Adventurer 0 Explorer 0 Win Type 6 Total 6 Types 1/3/0/0/0/0/2/0/0 Lore% 76 Gallery% 82 Achievement% 66 Wizard Run 0 Options --------- ASCII 1 Keyboard 1 Movement Vi Keybinds 0 Fullscreen 1 Font 16/Terminus Map View 75x55 Tactical HUD 1 Map Filters NONE Filters NONE Steam 1 RUN: 2cc0a3a4-bd45-4e75-a199-2cfdede0bb03